{"text_format":"1","workbook":"xlsx","n_sheets":27,"sheets":["Risk","Crop","Log_TPL","Pests","Lists","Costs","Logos","Pest_Report","WGRCG","WGRFPN","WABCL","WPYNS","ARPGBM","WGRFXT","WPBRMG","WABDK","WPD","WPJG","DPM","DBR","DRR","ARPGRB","WABMG","WABPW","WABRW","WPVC","ARPSM"],"not_rendered":{"charts":3,"images":4,"macros":1,"external_links":0,"defined_names":217,"comments":0,"pivot_tables":0},"unopened":[],"bounds":{"document_bytes":16777216,"sheet_cells":100000,"rows_first":2000,"rows_last":500,"rows_between":2000,"halvings":0,"cell_chars":16384,"cell_head_chars":4096},"cells_cut":0,"cells_raw":0,"read":"whole","date_system":"1900"}

{"sheet":"Risk","index":0,"n_rows":51,"n_cols":21,"rows_kept":51,"cut":false,"hidden":false,"merged":[[27,6,29,20],[6,17,6,20],[6,6,6,7],[6,9,6,12],[6,13,6,16],[10,6,10,7],[10,9,10,12],[10,13,10,16],[10,17,10,20],[16,6,16,7],[16,9,16,12],[16,13,16,16],[16,17,16,20],[20,6,20,7],[20,9,20,12],[20,13,20,16],[20,17,20,20],[2,17,2,20],[1,5,1,6],[2,6,2,7],[2,9,2,12],[2,13,2,16]]}
[]
[]
[null,null,null,"Crop",null,null,"Arthropods",null,"Index","Low",null,null,null,"Med",null,null,null,"High"]
[null,null,null,"Age","1 to 3 years",null,null,"Grape Berry Moth",{"$f":"ARPGBM_RiskIndex","v":25},25,25,25,25,25,25,25,25,25,25,25,25]
[null,null,null,"Type","Bronze Fruit",null,null,"Grape Root Borer",{"$f":"ARPGRB_RiskIndex","v":30},30,30,30,30,30,30,30,30,30,30,30,30]
[null,null,null,"Crop Practices",null,null,null,"Spider Mites",{"$f":"ARPSM_RiskIndex","v":45},45,45,45,45,45,45,45,45,45,45,45,45]
[null,null,null,"Infected Fruit Handling","Left in field",null,"Diseases",null,"Index","Low",null,null,null,"Med",null,null,null,"High"]
[null,null,null,"Pruning","Summer hedge",null,null,"Black Rot",{"$f":"DBR_RiskIndex","v":65},65,65,65,65,65,65,65,65,65,65,65,65]
[null,null,null,"Field",null,null,null,"Powdery Mildew",{"$f":"DPM_RiskIndex","v":30},30,30,30,30,30,30,30,30,30,30,30,30]
[null,null,null,"Prior Land Use","Cultivated",null,null,"Ripe Rot",{"$f":"DRR_RiskIndex","v":55},55,55,55,55,55,55,55,55,55,55,55,55]
[null,null,null,"Field Practices",null,null,"Weeds (Annual Broadleaves)",null,"Index","Low",null,null,null,"Med",null,null,null,"High"]
[null,null,null,"In Row","Weedy",null,null,"Common Lambsquarters",{"$f":"WABCL_RiskIndex","v":80},80,80,80,80,80,80,80,80,80,80,80,80]
[null,null,null,"Irrigation","None",null,null,"Dock",{"$f":"WABDK_RiskIndex","v":80},80,80,80,80,80,80,80,80,80,80,80,80]
[null,null,null,"Row Middles","Weedy",null,null,"Morningglory",{"$f":"WABMG_RiskIndex","v":85},85,85,85,85,85,85,85,85,85,85,85,85]
[null,null,null,"Row Middles Mowing","No",null,null,"Pigweed",{"$f":"WABPW_RiskIndex","v":90},90,90,90,90,90,90,90,90,90,90,90,90]
[null,null,null,"Growing Season",null,null,null,"Ragweed",{"$f":"WABRW_RiskIndex","v":90},90,90,90,90,90,90,90,90,90,90,90,90]
[null,null,null,"Weather","Dry",null,"Weeds (Annual Grasses)",null,"Index","Low",null,null,null,"Med",null,null,null,"High"]
[null,null,null,"Harvest",null,null,null,"Crabgrass",{"$f":"WGRCG_RiskIndex","v":80},80,80,80,80,80,80,80,80,80,80,80,80]
[null,null,null,"Fruit Handling","Not Cooled",null,null,"Fall Panicum",{"$f":"WGRFPN_RiskIndex","v":80},80,80,80,80,80,80,80,80,80,80,80,80]
[null,null,null,"Weather Conditions","Wet",null,null,"Foxtail",{"$f":"WGRFXT_RiskIndex","v":80},80,80,80,80,80,80,80,80,80,80,80,80]
[null,null,null,"Pest History Arthropods",null,null,"Weeds (Perennials)",null,"Index","Low",null,null,null,"Med",null,null,null,"High"]
[null,null,null,"Grape Berry Moth","Within last 2 years",null,null,"Bermudagrass",{"$f":"WPBRMG_RiskIndex","v":80},80,80,80,80,80,80,80,80,80,80,80,80]
[null,null,null,"Grape Root Borer","Within last 2 years",null,null,"Dandelion",{"$f":"WPD_RiskIndex","v":70},70,70,70,70,70,70,70,70,70,70,70,70]
[null,null,null,"Spider Mites","Within last 2 years",null,null,"Johnsongrass",{"$f":"WPJG_RiskIndex","v":80},80,80,80,80,80,80,80,80,80,80,80,80]
[null,null,null,"Pest History Diseases",null,null,null,"Virginia Creeper",{"$f":"WPVC_RiskIndex","v":55},55,55,55,55,55,55,55,55,55,55,55,55]
[null,null,null,"Black Rot","Within last 2 years",null,null,"Yellow Nutsedge",{"$f":"WPYNS_RiskIndex","v":80},80,80,80,80,80,80,80,80,80,80,80,80]
[null,null,null,"Powdery Mildew","Within last 2 years"]
[null,null,null,"Ripe Rot","Within last 2 years",null,"Red Dots - Change practices to eliminate.\r\nYellow Dots - Consider adjusting practices to reduce risk.\r\nGreen Dots - Risk is acceptable for selected practices."]
[null,null,null,"Pest Management Chemical"]
[null,null,null,"Fumigation","No"]
[null,null,null,"Fungicides","None"]
[null,null,null,"Insecticides","None"]
[null,null,null,"Sevin","Used"]
[null,null,null,"Pest Management Cultural"]
[null,null,null,"Grape Root Borer","None"]
[null,null,null,"Weed History"]
[null,null,null,"Bermudagrass","Within last 2 years"]
[null,null,null,"Common Lambsquarter","Within last 2 years"]
[null,null,null,"Crabgrass","Within last 2 years"]
[null,null,null,"Dandelion","Within last 2 years"]
[null,null,null,"Dock","Within last 2 years"]
[null,null,null,"Fall Panicum","Within last 2 years"]
[null,null,null,"Foxtail","Within last 2 years"]
[null,null,null,"Johnsongrass","Within last 2 years"]
[null,null,null,"Morningglory","Within last 2 years"]
[null,null,null,"Pigweed","Within last 2 years"]
[null,null,null,"Ragweed","Within last 2 years"]
[null,null,null,"Virginia Creeper","Within last 2 years"]
[null,null,null,"Yellow Nutsedge","Within last 2 years"]
[null,null,null,"Weed Management"]
[null,null,null,"Herbicide Applications","None"]

{"sheet":"Crop","index":1,"n_rows":15,"n_cols":5,"rows_kept":15,"cut":false,"hidden":true,"merged":[[12,1,12,4],[13,1,13,4],[14,1,14,4],[15,1,15,4],[6,1,6,4],[7,1,7,4],[8,1,8,4],[9,1,9,4],[10,1,10,4],[11,1,11,4]]}
["Crop","Muscadine Grape"]
[]
["Planting Season","Date","Month","Day of Month","Day of Year"]
["Start","2021-05-15",{"$f":"MONTH(B4)","v":5},{"$f":"DAY(B4)","v":15},{"$f":"B4-DATE(YEAR(B4),1,1)+1","v":135}]
["End","2021-07-15",{"$f":"MONTH(B5)","v":7},{"$f":"DAY(B5)","v":15},{"$f":"B5-DATE(YEAR(B5),1,1)+1","v":196}]
[]
["Title","Muscadine Grape Risk Tool - NC"]
["Subtitle"]
["Credit Lines","Kira Sims and Katie Jennings"]
[null,"Department of Horticultural Science"]
[]
[null,"David Jordan and Greg Buol"]
[null,"Department of Crop and Soil Sciences"]
[]
[null,"North Carolina State University, Raleigh NC"]

{"sheet":"Log_TPL","index":2,"n_rows":191,"n_cols":21,"rows_kept":191,"cut":false,"hidden":true,"merged":[[0,0,0,14],[19,5,19,14]]}
["Field and Production Information"]
[null,null,null,null,null,null,null,null,null,null,null,null,null,null,null,null,null,null,"Input Selection Lists"]
[null,null,null,"Crop",{"$f":"Crop","v":"Muscadine Grape"},null,null,null,null,null,null,null,null,null,null,null,null,null,"Tillage_Pracs","Control_Rating","Weed_Mgmt"]
[null,null,null,"Variety"]
[null,null,null,null,null,null,null,null,null,null,null,null,null,null,null,null,null,null,"Bed","No Control (<5%)","Chemical"]
[null,null,null,"Field Area (A)",null,null,null,null,null,null,null,null,null,null,null,null,null,null,"Chisel","Poor (5% to 20%)","Mowing"]
[null,null,null,null,null,null,null,null,null,null,null,null,null,null,null,null,null,null,"Cultivate","Low (20% to 50%)","Hand weeding"]
[null,null,null,"Soil ","Mapped Series","% of Field",null,null,null,null,null,null,null,null,null,null,null,null,"Disk","Moderate (50% to 80%)"]
[null,null,null,null,null,null,null,null,null,null,null,null,null,null,null,null,null,null,"Moldboard Plow","High (80% to 90%)"]
[null,null,null,null,null,null,null,null,null,null,null,null,null,null,null,null,null,null,"No Till","Excellent (90% to 100%)"]
[null,null,null,null,null,null,null,null,null,null,null,null,null,null,null,null,null,null,"Other"]
[null,null,null,null,null,null,null,null,null,null,null,null,null,null,null,null,null,null,"Rip"]
[null,null,null,null,null,null,null,null,null,null,null,null,null,null,null,null,null,null,"Rip and Bed"]
[null,null,null,null,null,null,null,null,null,null,null,null,null,null,null,null,null,null,"Strip Till"]
[null,null,null,"Lime Applications","Date","Rate (lbs/A)"]
[null,null,null,"Current Year"]
[null,null,null,"Last Year"]
[]
[null,null,null,"Fertilizer","Date","N","P2O5","K2O","B","Cu","Fe","Mn","Mo","S","Zn"]
[null,null,null,null,null,"lbs/A"]
[]
[]
[]
[]
[]
[]
[null,null,null,"Weed Control","Date","Weeds","Weed Size","Management","Trade Name","Rate","Trade Name","Rate","Trade Name","Rate","Trade Name","Rate","Evaluation Date","Control Rating"]
[]
[]
[]
[]
[]
[]
[]
[]
[]
[null,null,null,"Pest Treaments","Date","Pest","Severity","Trade Name","Rate","Trade Name","Rate","Evaluation Date","Control Rating"]
[]
[]
[]
[]
[]
[]
[]
[]
[null,null,null,"Development Dates","Date","Crop Status"]
[null,null,null,"Leaf Bud Break"]
[null,null,null,"Visible Flower Buds"]
[null,null,null,"First Open Flowers"]
[null,null,null,"Fruit Formation"]
[null,null,null,"Last Flower"]
[null,null,null,"Veraison"]
[null,null,null,"First Fruit Harvest"]
[null,null,null,"Last Fruit Harvest"]
[]
[null,null,null,"Pruning","Date","Crop Status"]
[]
[]
[]
[null,null,null,"Weeds at Harvest"]
[]
[]
[]
[]
[]
[]
[]
[]
[null,null,null,"Yield","Date","lb/ac","Price ($/lb)","Gross Profit ($/ac)"]
[null,null,null,"Harvest 1",null,null,null,{"$f":"F70*G70","v":0}]
[null,null,null,"Harvest 2",null,null,null,0]
[null,null,null,"Harvest 3",null,null,null,0]
[null,null,null,"Harvest 4",null,null,null,0]
[null,null,null,"Harvest 5",null,null,null,0]
[null,null,null,"Harvest 6",null,null,null,0]
[null,null,null,"Harvest 7",null,null,null,0]
[null,null,null,"Harvest 8",null,null,null,0]
[null,null,null,"Harvest 9",null,null,null,0]
[null,null,null,"Harvest 10",null,null,null,0]
[null,null,null,"Harvest 11",null,null,null,0]
[null,null,null,"Harvest 12",null,null,null,0]
[null,null,null,"Harvest 13",null,null,null,0]
[null,null,null,"Harvest 14",null,null,null,0]
[null,null,null,"Harvest 15",null,null,null,0]
[null,null,null,"Harvest 16",null,null,null,0]
[null,null,null,"Harvest 17",null,null,null,0]
[null,null,null,"Harvest 18",null,null,null,0]
[null,null,null,"Harvest 19",null,null,null,0]
[null,null,null,"Harvest 20",null,null,null,0]
[]
[null,null,null,"Rainfall/Irrigation","Date","Amount (in)","Month",null,"Month","Amount (in)"]
[null,null,null,null,null,null,{"$f":"IF(ISBLANK(E92),\"\",TEXT(E92,\"mmm\"))","v":""},null,"Jan",{"$f":"SUMIF(G$92:G$191,\"=\" & I92,F$92:F$191)","v":0}]
[null,null,null,null,null,null,"",null,"Feb",0]
[null,null,null,null,null,null,"",null,"Mar",0]
[null,null,null,null,null,null,"",null,"Apr",0]
[null,null,null,null,null,null,"",null,"May",0]
[null,null,null,null,null,null,"",null,"Jun",0]
[null,null,null,null,null,null,"",null,"Jul",0]
[null,null,null,null,null,null,"",null,"Aug",0]
[null,null,null,null,null,null,"",null,"Sep",0]
[null,null,null,null,null,null,"",null,"Oct",0]
[null,null,null,null,null,null,"",null,"Nov",0]
[null,null,null,null,null,null,"",null,"Dec",0]
[null,null,null,null,null,null,""]
[null,null,null,null,null,null,""]
[null,null,null,null,null,null,""]
[null,null,null,null,null,null,""]
[null,null,null,null,null,null,""]
[null,null,null,null,null,null,""]
[null,null,null,null,null,null,""]
[null,null,null,null,null,null,""]
[null,null,null,null,null,null,""]
[null,null,null,null,null,null,""]
[null,null,null,null,null,null,""]
[null,null,null,null,null,null,""]
[null,null,null,null,null,null,""]
[null,null,null,null,null,null,""]
[null,null,null,null,null,null,""]
[null,null,null,null,null,null,""]
[null,null,null,null,null,null,""]
[null,null,null,null,null,null,""]
[null,null,null,null,null,null,""]
[null,null,null,null,null,null,""]
[null,null,null,null,null,null,{"$f":"IF(ISBLANK(E124),\"\",TEXT(E124,\"mmm\"))","v":""}]
[null,null,null,null,null,null,""]
[null,null,null,null,null,null,""]
[null,null,null,null,null,null,""]
[null,null,null,null,null,null,""]
[null,null,null,null,null,null,""]
[null,null,null,null,null,null,""]
[null,null,null,null,null,null,""]
[null,null,null,null,null,null,""]
[null,null,null,null,null,null,""]
[null,null,null,null,null,null,""]
[null,null,null,null,null,null,""]
[null,null,null,null,null,null,""]
[null,null,null,null,null,null,""]
[null,null,null,null,null,null,""]
[null,null,null,null,null,null,""]
[null,null,null,null,null,null,""]
[null,null,null,null,null,null,""]
[null,null,null,null,null,null,""]
[null,null,null,null,null,null,""]
[null,null,null,null,null,null,""]
[null,null,null,null,null,null,""]
[null,null,null,null,null,null,""]
[null,null,null,null,null,null,""]
[null,null,null,null,null,null,""]
[null,null,null,null,null,null,""]
[null,null,null,null,null,null,""]
[null,null,null,null,null,null,""]
[null,null,null,null,null,null,""]
[null,null,null,null,null,null,""]
[null,null,null,null,null,null,""]
[null,null,null,null,null,null,""]
[null,null,null,null,null,null,""]
[null,null,null,null,null,null,{"$f":"IF(ISBLANK(E157),\"\",TEXT(E157,\"mmm\"))","v":""}]
[null,null,null,null,null,null,""]
[null,null,null,null,null,null,""]
[null,null,null,null,null,null,""]
[null,null,null,null,null,null,""]
[null,null,null,null,null,null,""]
[null,null,null,null,null,null,""]
[null,null,null,null,null,null,""]
[null,null,null,null,null,null,""]
[null,null,null,null,null,null,""]
[null,null,null,null,null,null,""]
[null,null,null,null,null,null,""]
[null,null,null,null,null,null,""]
[null,null,null,null,null,null,""]
[null,null,null,null,null,null,""]
[null,null,null,null,null,null,""]
[null,null,null,null,null,null,""]
[null,null,null,null,null,null,""]
[null,null,null,null,null,null,""]
[null,null,null,null,null,null,""]
[null,null,null,null,null,null,""]
[null,null,null,null,null,null,""]
[null,null,null,null,null,null,""]
[null,null,null,null,null,null,""]
[null,null,null,null,null,null,""]
[null,null,null,null,null,null,""]
[null,null,null,null,null,null,""]
[null,null,null,null,null,null,""]
[null,null,null,null,null,null,""]
[null,null,null,null,null,null,""]
[null,null,null,null,null,null,""]
[null,null,null,null,null,null,""]
[null,null,null,null,null,null,""]
[null,null,null,null,null,null,""]
[null,null,null,null,null,null,""]

{"sheet":"Pests","index":3,"n_rows":20,"n_cols":3,"rows_kept":20,"cut":false,"hidden":true,"merged":[]}
["PestType","Pest","PestID"]
["Arthropods","Grape Berry Moth","ARPGBM"]
["Arthropods","Grape Root Borer","ARPGRB"]
["Arthropods","Spider Mites","ARPSM"]
["Diseases","Black Rot","DBR"]
["Diseases","Powdery Mildew","DPM"]
["Diseases","Ripe Rot","DRR"]
["Weeds (Annual Broadleaves)","Common Lambsquarters","WABCL"]
["Weeds (Annual Broadleaves)","Dock","WABDK"]
["Weeds (Annual Broadleaves)","Morningglory","WABMG"]
["Weeds (Annual Broadleaves)","Pigweed","WABPW"]
["Weeds (Annual Broadleaves)","Ragweed","WABRW"]
["Weeds (Annual Grasses)","Crabgrass","WGRCG"]
["Weeds (Annual Grasses)","Fall Panicum","WGRFPN"]
["Weeds (Annual Grasses)","Foxtail","WGRFXT"]
["Weeds (Perennials)","Bermudagrass","WPBRMG"]
["Weeds (Perennials)","Dandelion","WPD"]
["Weeds (Perennials)","Johnsongrass","WPJG"]
["Weeds (Perennials)","Virginia Creeper","WPVC"]
["Weeds (Perennials)","Yellow Nutsedge","WPYNS"]

{"sheet":"Lists","index":4,"n_rows":38,"n_cols":44,"rows_kept":38,"cut":false,"hidden":true,"merged":[]}
["Category","Category_Pest","CategoryID","Category_List","Category_List_Type","Months","Land_Area_Units","Weed_Management\\Herbicide_Applications","Field_Practices\\Row_Middles","Weed_History\\Common_Lambsquarter","Weed_History\\Crabgrass","Weed_History\\Dandelion","Field\\Prior_Land_Use","Crop\\Age","Crop\\Type","Field_Practices\\Irrigation","Crop_Practices\\Pruning","Field_Practices\\In_Row","Weed_History\\Fall_Panicum","Weed_History\\Dock","Weed_History\\Morningglory","Weed_History\\Pigweed","Weed_History\\Ragweed","Weed_History\\Foxtail","Weed_History\\Yellow_Nutsedge","Weed_History\\Bermudagrass","Pest_Management_Chemical\\Fungicides","Pest_Management_Chemical\\Insecticides","Pest_Management_Chemical\\Fumigation","Crop_Practices\\Infected_Fruit_Handling","Pest_History_Diseases\\Black_Rot","Pest_History_Diseases\\Powdery_Mildew","Pest_History_Diseases\\Ripe_Rot","Weed_History\\Johnsongrass","Weed_History\\Virginia_Creeper","Field_Practices\\Row_Middles_Mowing","Harvest\\Weather_Conditions","Growing_Season\\Weather","Pest_Management_Chemical\\Sevin","Pest_Management_Cultural\\Grape_Root_Borer","Pest_History_Arthropods\\Grape_Berry_Moth","Pest_History_Arthropods\\Grape_Root_Borer","Pest_History_Arthropods\\Spider_Mites","Harvest\\Fruit_Handling"]
["Crop\\Age",null,"Crop\\Age","Crop\\Age","Single","(01) January","ac","01|None","01|Weed-free","01|Never","01|Never","01|Never","01|Forest/fallow","01|1 to 3 years","01|Bronze Fruit","01|None","01|Never","01|Weed-free","01|Never","01|Never","01|Never","01|Never","01|Never","01|Never","01|Never","01|Never","01|None","01|None","01|No","01|Left in field","01|Never","01|Never","01|Never","01|Never","01|Never","01|Yes","01|Dry","01|Dry","01|Not used","01|None","01|Never","01|Never","01|Never","01|Cooled"]
["Crop\\Type",null,"Crop\\Type","Crop\\Type","Single","(02) February","ha","02|1 recommended","02|Cover crop","02|Within last 2 years","02|Within last 2 years","02|Within last 2 years","02|Cultivated","02|4 to 10 years","02|Purple/Black Fruit","02|Drip","02|Summer hedge","02|Weedy","02|Within last 2 years","02|Within last 2 years","02|Within last 2 years","02|Within last 2 years","02|Within last 2 years","02|Within last 2 years","02|Within last 2 years","02|Within last 2 years","02|1 to 2 recommended","02|1 to 2 recommended","02|Yes","01|Removed from field","02|Within last 2 years","02|Within last 2 years","02|Within last 2 years","02|Within last 2 years","02|Within last 2 years","02|No","02|Wet","02|Humid","02|Used","02|Mating disruption","02|Within last 2 years","02|Within last 2 years","02|Within last 2 years","02|Not Cooled"]
["Crop_Practices\\Infected_Fruit_Handling",null,"Crop_Practices\\Infected_Fruit_Handling","Crop_Practices\\Infected_Fruit_Handling","Single","(03) March",null,"03|2 recommended","03|Weedy","03|Within last 2 to 5 years","03|Within 2 to 5 years","03|Within 2 to 5 years","03|Turf","03|10 years or older",null,null,"03|Winter hedge",null,"03|Within 2 to 5 years","03|Within 2 to 5 years","03|Within 2 to 5 years","03|Within 2 to 5 years","03|Within 2 to 5 years","03|Within 2 to 5 years","03|Within 2 to 5 years","03|Within 2 to 5 years","03|3 to 4 recommended","03|3 to 4 recommended",null,null,"03|Within 2 to 5 years","03|Within 2 to 5 years","03|Within 2 to 3 yeares","03|Within 3 to 5 years","03|Within 2 to 5 years",null,null,"03|Rainy",null,"03|Mounding/Mulch","03|Within 2 to 5 years","03|Within 2 to 5 years","03|Within 2 to 5 years"]
["Crop_Practices\\Pruning",null,"Crop_Practices\\Pruning","Crop_Practices\\Pruning","Single","(04) April",null,"04|3 recommended",null,"04|More than 5 years ago","04|More than 5 years ago","04|More than 5 years ago",null,null,null,null,"04|By hand",null,"04|More than 5 years ago","04|More than 5 years ago","04|More than 5 years ago","04|More than 5 years ago","04|More than 5 years ago","04|More than 5 years ago","04|More than 5 years ago","04|More than 5 years ago","05|6 or more recommended",null,null,null,"04|More than 5 years ago","04|More than 5 years","04|More than 5 years ago","04|More than 5 years ago","04|More than 5 years ago",null,null,null,null,null,"04|More than 5 years ago","04|More than 5 years ago","04|More than 5 years ago"]
["Field\\Prior_Land_Use",null,"Field\\Prior_Land_Use","Field\\Prior_Land_Use","Single","(05) May",null,"05|4 or more recommended"]
["Field_Practices\\In_Row",null,"Field_Practices\\In_Row","Field_Practices\\In_Row","Single","(06) June"]
["Field_Practices\\Irrigation",null,"Field_Practices\\Irrigation","Field_Practices\\Irrigation","Single","(07) July"]
["Field_Practices\\Row_Middles",null,"Field_Practices\\Row_Middles","Field_Practices\\Row_Middles","Single","(08) August"]
["Field_Practices\\Row_Middles_Mowing",null,"Field_Practices\\Row_Middles_Mowing","Field_Practices\\Row_Middles_Mowing","Single","(09) September"]
["Growing_Season\\Weather",null,"Growing_Season\\Weather","Growing_Season\\Weather","Single","(10) October"]
["Harvest\\Fruit_Handling",null,"Harvest\\Fruit_Handling","Harvest\\Fruit_Handling","Single","(11) November"]
["Harvest\\Weather_Conditions",null,"Harvest\\Weather_Conditions","Harvest\\Weather_Conditions","Single","(12) December"]
["Pest_History_Arthropods\\Grape_Berry_Moth",null,"Pest_History_Arthropods\\Grape_Berry_Moth","Pest_History_Arthropods\\Grape_Berry_Moth","Single"]
["Pest_History_Arthropods\\Grape_Root_Borer",null,"Pest_History_Arthropods\\Grape_Root_Borer","Pest_History_Arthropods\\Grape_Root_Borer","Single"]
["Pest_History_Arthropods\\Spider_Mites",null,"Pest_History_Arthropods\\Spider_Mites","Pest_History_Arthropods\\Spider_Mites","Single"]
["Pest_History_Diseases\\Black_Rot",null,"Pest_History_Diseases\\Black_Rot","Pest_History_Diseases\\Black_Rot","Single"]
["Pest_History_Diseases\\Powdery_Mildew",null,"Pest_History_Diseases\\Powdery_Mildew","Pest_History_Diseases\\Powdery_Mildew","Single"]
["Pest_History_Diseases\\Ripe_Rot",null,"Pest_History_Diseases\\Ripe_Rot","Pest_History_Diseases\\Ripe_Rot","Single"]
["Pest_Management_Chemical\\Fumigation",null,"Pest_Management_Chemical\\Fumigation","Pest_Management_Chemical\\Fumigation","Single"]
["Pest_Management_Chemical\\Fungicides",null,"Pest_Management_Chemical\\Fungicides","Pest_Management_Chemical\\Fungicides","Single"]
["Pest_Management_Chemical\\Insecticides",null,"Pest_Management_Chemical\\Insecticides","Pest_Management_Chemical\\Insecticides","Single"]
["Pest_Management_Chemical\\Sevin",null,"Pest_Management_Chemical\\Sevin","Pest_Management_Chemical\\Sevin","Single"]
["Pest_Management_Cultural\\Grape_Root_Borer",null,"Pest_Management_Cultural\\Grape_Root_Borer","Pest_Management_Cultural\\Grape_Root_Borer","Single"]
["Weed_History\\Bermudagrass",null,"Weed_History\\Bermudagrass","Weed_History\\Bermudagrass","Single"]
["Weed_History\\Common_Lambsquarter",null,"Weed_History\\Common_Lambsquarter","Weed_History\\Common_Lambsquarter","Single"]
["Weed_History\\Crabgrass",null,"Weed_History\\Crabgrass","Weed_History\\Crabgrass","Single"]
["Weed_History\\Dandelion",null,"Weed_History\\Dandelion","Weed_History\\Dandelion","Single"]
["Weed_History\\Dock",null,"Weed_History\\Dock","Weed_History\\Dock","Single"]
["Weed_History\\Fall_Panicum",null,"Weed_History\\Fall_Panicum","Weed_History\\Fall_Panicum","Single"]
["Weed_History\\Foxtail",null,"Weed_History\\Foxtail","Weed_History\\Foxtail","Single"]
["Weed_History\\Johnsongrass",null,"Weed_History\\Johnsongrass","Weed_History\\Johnsongrass","Single"]
["Weed_History\\Morningglory",null,"Weed_History\\Morningglory","Weed_History\\Morningglory","Single"]
["Weed_History\\Pigweed",null,"Weed_History\\Pigweed","Weed_History\\Pigweed","Single"]
["Weed_History\\Ragweed",null,"Weed_History\\Ragweed","Weed_History\\Ragweed","Single"]
["Weed_History\\Virginia_Creeper",null,"Weed_History\\Virginia_Creeper","Weed_History\\Virginia_Creeper","Single"]
["Weed_History\\Yellow_Nutsedge",null,"Weed_History\\Yellow_Nutsedge","Weed_History\\Yellow_Nutsedge","Single"]
["Weed_Management\\Herbicide_Applications",null,"Weed_Management\\Herbicide_Applications","Weed_Management\\Herbicide_Applications","Single"]

{"sheet":"Costs","index":5,"n_rows":24,"n_cols":14,"rows_kept":24,"cut":false,"hidden":true,"merged":[[0,7,0,9],[0,10,0,12],[6,7,6,9],[6,10,6,12],[10,7,10,9],[10,10,10,12]]}
["Land Area Units ","ac",null,null,null,null,null,{"$f":"Cost_Header","v":"Cost ($/ac)"},null,null,{"$f":"CONCATENATE(\"Person Hours (hrs/\",sel_Land_Area_Units,\")\")","v":"Person Hours (hrs/ac)"}]
["Category","Item",{"$f":"CONCATENATE(\"Cost ($/\",sel_Land_Area_Units,\")\")","v":"Cost ($/ac)"},"Multiplier",{"$f":"CONCATENATE(\"Person Hours (hrs/\",sel_Land_Area_Units,\")\")","v":"Person Hours (hrs/ac)"},null,"Category","Max","Min","Sel","Max","Min","Sel","Selection"]
["Base_Cost",null,210,null,null,null,"Base_Cost",{"$f":"Cost_Base","v":210},{"$f":"Cost_Base","v":210},{"$f":"Cost_Base","v":210},{"$f":"PersonHours_Base","v":0},{"$f":"PersonHours_Base","v":0},{"$f":"PersonHours_Base","v":0}]
[]
[null,null,null,null,null,null,"Total",{"$f":"SUM(H$3:H3)","v":210},{"$f":"SUM(I$3:I3)","v":210},{"$f":"IF(ISERROR(SUM(J$3:J3)),0,SUM(J$3:J3))","v":210},{"$f":"SUM(K$3:K3)","v":0},{"$f":"SUM(L$3:L3)","v":0},{"$f":"IF(ISERROR(SUM(M$3:M3)),0,SUM(M$3:M3))","v":0}]
[]
[null,null,null,null,null,null,null,{"$f":"CONCATENATE(\"Cost Thresholds ($/\",sel_Land_Area_Units,\")\")","v":"Cost Thresholds ($/ac)"},null,null,{"$f":"CONCATENATE(\"Person Hour Thresholds (hrs/\",sel_Land_Area_Units,\")\")","v":"Person Hour Thresholds (hrs/ac)"}]
[null,null,null,null,null,null,"High",{"$f":"Cost_Min + 0.66667*(Cost_Max-Cost_Min)","v":210},null,null,{"$f":"PersonHours_Min + 0.66667*(PersonHours_Max-PersonHours_Min)","v":0}]
[null,null,null,null,null,null,"Moderate",{"$f":"Cost_Min + 0.33333*(Cost_Max-Cost_Min)","v":210},null,null,{"$f":"PersonHours_Min + 0.33333*(PersonHours_Max-PersonHours_Min)","v":0}]
[]
[null,null,null,null,null,null,null,{"$f":"CONCATENATE(\"Cost Ranges ($/\",sel_Land_Area_Units,\")\")","v":"Cost Ranges ($/ac)"},null,null,{"$f":"CONCATENATE(\"Person Hour Ranges (hrs/\",sel_Land_Area_Units,\")\")","v":"Person Hour Ranges (hrs/ac)"}]
[null,null,null,null,null,null,"Base",{"$f":"Cost_Base","v":210},null,null,{"$f":"PersonHours_Base","v":0}]
[null,null,null,null,null,null,"Low",{"$f":"Cost_Moderate-Cost_Base","v":0},null,null,{"$f":"PersonHours_Moderate-PersonHours_Base","v":0}]
[null,null,null,null,null,null,"Moderate",{"$f":"Cost_High-Cost_Moderate","v":0},null,null,{"$f":"PersonHours_High-PersonHours_Moderate","v":0}]
[null,null,null,null,null,null,"High",{"$f":"Cost_Max-Cost_High","v":0},null,null,{"$f":"PersonHours_Max-PersonHours_High","v":0}]
[]
[null,null,null,null,null,null,{"$f":"CONCATENATE(\"Estimated Cost: $\",ROUNDUP(TRUNC(Cost,2),0),\"/\",sel_Land_Area_Units)","v":"Estimated Cost: $210/ac"}]
[]
[]
[]
[]
[]
[]
[null,null,null,null,null,null,{"$f":"CONCATENATE(\"Estimated Person Hours: \",ROUNDUP(TRUNC(PersonHours,2),0),\" hrs/\",sel_Land_Area_Units)","v":"Estimated Person Hours: 0 hrs/ac"}]

{"sheet":"Logos","index":6,"n_rows":0,"n_cols":0,"rows_kept":0,"cut":false,"hidden":true,"merged":[]}

{"sheet":"Pest_Report","index":7,"n_rows":21,"n_cols":4,"rows_kept":21,"cut":false,"hidden":true,"merged":[[17,3,18,3],[20,0,20,3],[0,0,0,3],[5,0,5,1],[5,2,5,3],[6,3,7,3],[8,0,8,1],[8,2,8,3],[9,3,11,3],[12,0,12,1],[12,2,12,3],[13,3,15,3],[16,0,16,1],[16,2,16,3]]}
["Muscadine Grape - Spider Mites Risk Summary"]
[]
[]
[]
[]
["Growing Season\\Weather",null,"Risk Points"]
[null,"Dry*, Humid",10,10]
[null,"Rainy",0]
["Pest History Arthropods\\Spider Mites",null,"Risk Points"]
[null,"Within last 2 years*",10,10]
[null,"Within 2 to 5 years",5]
[null,"Never, More than 5 years ago",0]
["Pest Management Chemical\\Insecticides",null,"Risk Points"]
[null,"None*",10,10]
[null,"1 to 2 recommended",0]
[null,"3 to 4 recommended",-5]
["Pest Management Chemical\\Sevin",null,"Risk Points"]
[null,"Used*",15,15]
[null,"Not used",0]
[]
["* Selected options used in calculating pest risk.\r\nNote: Reduction in pest risk value by a control practice will be less under low risk conditions."]

{"sheet":"WGRCG","index":8,"n_rows":27,"n_cols":12,"rows_kept":27,"cut":false,"hidden":true,"merged":[[0,0,0,3]]}
["Crabgrass"]
["Category","Risk Level","Risk Level Description","Points",null,null,null,"Category","Max","Min","Risk","Selection"]
["Crop\\Age",1,"1 to 3 years",15,null,null,null,"Crop\\Age",15,5,{"$f":"getRiskValue(\"A:A\",H3,J3,L3,\"Single\")","v":15},{"$f":"IF(ISBLANK(sel_Crop\\Age),\"\",sel_Crop\\Age)","v":"1 to 3 years"}]
["Crop\\Age",2,"4 to 10 years",10,null,null,null,"Weed_History\\Crabgrass",15,0,15,{"$f":"IF(ISBLANK(sel_Weed_History\\Crabgrass),\"\",sel_Weed_History\\Crabgrass)","v":"Within last 2 years"}]
["Crop\\Age",3,"10 years or older",5,null,null,null,"Weed_Management\\Herbicide_Applications",15,-15,15,{"$f":"IF(ISBLANK(sel_Weed_Management\\Herbicide_Applications),\"\",sel_Weed_Management\\Herbicide_Applications)","v":"None"}]
["Crop_Practices\\Pruning",1,"Summer hedge",10,null,null,null,"Crop_Practices\\Pruning",10,5,10,{"$f":"IF(ISBLANK(sel_Crop_Practices\\Pruning),\"\",sel_Crop_Practices\\Pruning)","v":"Summer hedge"}]
["Crop_Practices\\Pruning",2,"Never|Winter hedge|By hand",5,null,null,null,"Field\\Prior_Land_Use",10,0,5,{"$f":"IF(ISBLANK(sel_Field\\Prior_Land_Use),\"\",sel_Field\\Prior_Land_Use)","v":"Cultivated"}]
["Field\\Prior_Land_Use",1,"Turf",10,null,null,null,"Field_Practices\\In_Row",10,0,10,{"$f":"IF(ISBLANK(sel_Field_Practices\\In_Row),\"\",sel_Field_Practices\\In_Row)","v":"Weedy"}]
["Field\\Prior_Land_Use",2,"Cultivated",5,null,null,null,"Field_Practices\\Row_Middles",10,0,10,{"$f":"IF(ISBLANK(sel_Field_Practices\\Row_Middles),\"\",sel_Field_Practices\\Row_Middles)","v":"Weedy"}]
["Field\\Prior_Land_Use",3,"Forest/fallow",0,null,null,null,"Field_Practices\\Irrigation",5,0,0,{"$f":"IF(ISBLANK(sel_Field_Practices\\Irrigation),\"\",sel_Field_Practices\\Irrigation)","v":"None"}]
["Field_Practices\\In_Row",1,"Weedy",10,null,null,null,"Field_Practices\\Row_Middles_Mowing",0,-5,0,{"$f":"IF(ISBLANK(sel_Field_Practices\\Row_Middles_Mowing),\"\",sel_Field_Practices\\Row_Middles_Mowing)","v":"No"}]
["Field_Practices\\In_Row",2,"Weed-free",0]
["Field_Practices\\Irrigation",1,"Drip",5,null,null,null,"Total",{"$f":"SUMIF(I3:I11,\">0\")","v":90},{"$f":"SUMIF(J3:J11,\">0\")","v":10},{"$f":"MAX(WGRCG_MinRiskIndex,SUM(K3:K11))","v":80}]
["Field_Practices\\Irrigation",2,"None",0]
["Field_Practices\\Row_Middles",1,"Cover crop|Weedy",10,null,null,null,"High Risk Index",75]
["Field_Practices\\Row_Middles",2,"Weed-free",0,null,null,null,"Moderate Risk Index",45]
["Field_Practices\\Row_Middles_Mowing",1,"No",0]
["Field_Practices\\Row_Middles_Mowing",2,"Yes",-5]
["Weed_History\\Crabgrass",1,"Within last 2 years",15]
["Weed_History\\Crabgrass",2,"Within 2 to 5 years",10]
["Weed_History\\Crabgrass",3,"More than 5 years ago",5]
["Weed_History\\Crabgrass",4,"Never",0]
["Weed_Management\\Herbicide_Applications",1,"None",15]
["Weed_Management\\Herbicide_Applications",2,"1 recommended",5]
["Weed_Management\\Herbicide_Applications",3,"2 recommended",-5]
["Weed_Management\\Herbicide_Applications",4,"3 recommended",-10]
["Weed_Management\\Herbicide_Applications",5,"4 or more recommended",-15]

{"sheet":"WGRFPN","index":9,"n_rows":27,"n_cols":12,"rows_kept":27,"cut":false,"hidden":true,"merged":[[0,0,0,3]]}
["Fall Panicum"]
["Category","Risk Level","Risk Level Description","Points",null,null,null,"Category","Max","Min","Risk","Selection"]
["Crop\\Age",1,"1 to 3 years",10,null,null,null,"Weed_History\\Fall_Panicum",15,0,{"$f":"getRiskValue(\"A:A\",H3,J3,L3,\"Single\")","v":15},{"$f":"IF(ISBLANK(sel_Weed_History\\Fall_Panicum),\"\",sel_Weed_History\\Fall_Panicum)","v":"Within last 2 years"}]
["Crop\\Age",2,"4 to 10 years|10 years or older",5,null,null,null,"Weed_Management\\Herbicide_Applications",15,-15,15,{"$f":"IF(ISBLANK(sel_Weed_Management\\Herbicide_Applications),\"\",sel_Weed_Management\\Herbicide_Applications)","v":"None"}]
["Crop_Practices\\Pruning",1,"Summer hedge",10,null,null,null,"Crop\\Age",10,5,10,{"$f":"IF(ISBLANK(sel_Crop\\Age),\"\",sel_Crop\\Age)","v":"1 to 3 years"}]
["Crop_Practices\\Pruning",2,"Never|Winter hedge|By hand",5,null,null,null,"Crop_Practices\\Pruning",10,5,10,{"$f":"IF(ISBLANK(sel_Crop_Practices\\Pruning),\"\",sel_Crop_Practices\\Pruning)","v":"Summer hedge"}]
["Field\\Prior_Land_Use",1,"Cultivated",10,null,null,null,"Field\\Prior_Land_Use",10,0,10,{"$f":"IF(ISBLANK(sel_Field\\Prior_Land_Use),\"\",sel_Field\\Prior_Land_Use)","v":"Cultivated"}]
["Field\\Prior_Land_Use",2,"Forest/fallow",5,null,null,null,"Field_Practices\\In_Row",10,0,10,{"$f":"IF(ISBLANK(sel_Field_Practices\\In_Row),\"\",sel_Field_Practices\\In_Row)","v":"Weedy"}]
["Field\\Prior_Land_Use",3,"Turf",0,null,null,null,"Field_Practices\\Row_Middles",10,0,10,{"$f":"IF(ISBLANK(sel_Field_Practices\\Row_Middles),\"\",sel_Field_Practices\\Row_Middles)","v":"Weedy"}]
["Field_Practices\\In_Row",1,"Weedy",10,null,null,null,"Field_Practices\\Irrigation",5,0,0,{"$f":"IF(ISBLANK(sel_Field_Practices\\Irrigation),\"\",sel_Field_Practices\\Irrigation)","v":"None"}]
["Field_Practices\\In_Row",2,"Weed-free",0,null,null,null,"Field_Practices\\Row_Middles_Mowing",0,-5,0,{"$f":"IF(ISBLANK(sel_Field_Practices\\Row_Middles_Mowing),\"\",sel_Field_Practices\\Row_Middles_Mowing)","v":"No"}]
["Field_Practices\\Irrigation",1,"Drip",5]
["Field_Practices\\Irrigation",2,"None",0,null,null,null,"Total",{"$f":"SUMIF(I3:I11,\">0\")","v":85},{"$f":"SUMIF(J3:J11,\">0\")","v":10},{"$f":"MAX(WGRFPN_MinRiskIndex,SUM(K3:K11))","v":80}]
["Field_Practices\\Row_Middles",1,"Weedy",10]
["Field_Practices\\Row_Middles",2,"Cover crop",5,null,null,null,"High Risk Index",70]
["Field_Practices\\Row_Middles",3,"Weed-free",0,null,null,null,"Moderate Risk Index",40]
["Field_Practices\\Row_Middles_Mowing",1,"No",0]
["Field_Practices\\Row_Middles_Mowing",2,"Yes",-5]
["Weed_History\\Fall_Panicum",1,"Within last 2 years",15]
["Weed_History\\Fall_Panicum",2,"Within 2 to 5 years",10]
["Weed_History\\Fall_Panicum",3,"More than 5 years ago",5]
["Weed_History\\Fall_Panicum",4,"Never",0]
["Weed_Management\\Herbicide_Applications",1,"None",15]
["Weed_Management\\Herbicide_Applications",2,"1 recommended",5]
["Weed_Management\\Herbicide_Applications",3,"2 recommended",-5]
["Weed_Management\\Herbicide_Applications",4,"3 recommended",-10]
["Weed_Management\\Herbicide_Applications",5,"4 or more recommended",-15]

{"sheet":"WABCL","index":10,"n_rows":26,"n_cols":12,"rows_kept":26,"cut":false,"hidden":true,"merged":[[0,0,0,3]]}
["Common Lambsquarters"]
["Category","Risk Level","Risk Level Description","Points",null,null,null,"Category","Max","Min","Risk","Selection"]
["Crop\\Age",1,"1 to 3 years",10,null,null,null,"Weed_History\\Common_Lambsquarter",15,0,{"$f":"getRiskValue(\"A:A\",H3,J3,L3,\"Single\")","v":15},{"$f":"IF(ISBLANK(sel_Weed_History\\Common_Lambsquarter),\"\",sel_Weed_History\\Common_Lambsquarter)","v":"Within last 2 years"}]
["Crop\\Age",2,"4 to 10 years|10 years or older",5,null,null,null,"Weed_Management\\Herbicide_Applications",15,-15,15,{"$f":"IF(ISBLANK(sel_Weed_Management\\Herbicide_Applications),\"\",sel_Weed_Management\\Herbicide_Applications)","v":"None"}]
["Crop_Practices\\Pruning",1,"Summer hedge",10,null,null,null,"Crop\\Age",10,5,10,{"$f":"IF(ISBLANK(sel_Crop\\Age),\"\",sel_Crop\\Age)","v":"1 to 3 years"}]
["Crop_Practices\\Pruning",2,"Never|Winter hedge|By hand",5,null,null,null,"Crop_Practices\\Pruning",10,5,10,{"$f":"IF(ISBLANK(sel_Crop_Practices\\Pruning),\"\",sel_Crop_Practices\\Pruning)","v":"Summer hedge"}]
["Field\\Prior_Land_Use",1,"Cultivated",10,null,null,null,"Field\\Prior_Land_Use",10,0,10,{"$f":"IF(ISBLANK(sel_Field\\Prior_Land_Use),\"\",sel_Field\\Prior_Land_Use)","v":"Cultivated"}]
["Field\\Prior_Land_Use",2,"Forest/fallow|Turf",0,null,null,null,"Field_Practices\\In_Row",10,0,10,{"$f":"IF(ISBLANK(sel_Field_Practices\\In_Row),\"\",sel_Field_Practices\\In_Row)","v":"Weedy"}]
["Field_Practices\\In_Row",1,"Weedy",10,null,null,null,"Field_Practices\\Row_Middles",10,0,10,{"$f":"IF(ISBLANK(sel_Field_Practices\\Row_Middles),\"\",sel_Field_Practices\\Row_Middles)","v":"Weedy"}]
["Field_Practices\\In_Row",2,"Weed-free",0,null,null,null,"Field_Practices\\Irrigation",5,0,0,{"$f":"IF(ISBLANK(sel_Field_Practices\\Irrigation),\"\",sel_Field_Practices\\Irrigation)","v":"None"}]
["Field_Practices\\Irrigation",1,"Drip",5,null,null,null,"Field_Practices\\Row_Middles_Mowing",0,-5,0,{"$f":"IF(ISBLANK(sel_Field_Practices\\Row_Middles_Mowing),\"\",sel_Field_Practices\\Row_Middles_Mowing)","v":"No"}]
["Field_Practices\\Irrigation",2,"None",0]
["Field_Practices\\Row_Middles",1,"Weedy",10,null,null,null,"Total",{"$f":"SUMIF(I3:I11,\">0\")","v":85},{"$f":"SUMIF(J3:J11,\">0\")","v":10},{"$f":"MAX(WABCL_MinRiskIndex,SUM(K3:K11))","v":80}]
["Field_Practices\\Row_Middles",2,"Cover crop",5]
["Field_Practices\\Row_Middles",3,"Weed-free",0,null,null,null,"High Risk Index",70]
["Field_Practices\\Row_Middles_Mowing",1,"No",0,null,null,null,"Moderate Risk Index",40]
["Field_Practices\\Row_Middles_Mowing",2,"Yes",-5]
["Weed_History\\Common_Lambsquarter",1,"Within last 2 years",15]
["Weed_History\\Common_Lambsquarter",2,"Within last 2 to 5 years",10]
["Weed_History\\Common_Lambsquarter",3,"More than 5 years ago",5]
["Weed_History\\Common_Lambsquarter",4,"Never",0]
["Weed_Management\\Herbicide_Applications",1,"None",15]
["Weed_Management\\Herbicide_Applications",2,"1 recommended",5]
["Weed_Management\\Herbicide_Applications",3,"2 recommended",-5]
["Weed_Management\\Herbicide_Applications",4,"3 recommended",-10]
["Weed_Management\\Herbicide_Applications",5,"4 or more recommended",-15]

{"sheet":"WPYNS","index":11,"n_rows":21,"n_cols":12,"rows_kept":21,"cut":false,"hidden":true,"merged":[[0,0,0,3]]}
["Yellow Nutsedge"]
["Category","Risk Level","Risk Level Description","Points",null,null,null,"Category","Max","Min","Risk","Selection"]
["Crop\\Age",1,"10 years or older",15,null,null,null,"Weed_History\\Yellow_Nutsedge",20,0,{"$f":"getRiskValue(\"A:A\",H3,J3,L3,\"Single\")","v":20},{"$f":"IF(ISBLANK(sel_Weed_History\\Yellow_Nutsedge),\"\",sel_Weed_History\\Yellow_Nutsedge)","v":"Within last 2 years"}]
["Crop\\Age",2,"1 to 3 years|4 to 10 years",10,null,null,null,"Crop\\Age",15,10,10,{"$f":"IF(ISBLANK(sel_Crop\\Age),\"\",sel_Crop\\Age)","v":"1 to 3 years"}]
["Crop_Practices\\Pruning",1,"Summer hedge",10,null,null,null,"Crop_Practices\\Pruning",10,5,10,{"$f":"IF(ISBLANK(sel_Crop_Practices\\Pruning),\"\",sel_Crop_Practices\\Pruning)","v":"Summer hedge"}]
["Crop_Practices\\Pruning",2,"Never|Winter hedge|By hand",5,null,null,null,"Field\\Prior_Land_Use",10,0,10,{"$f":"IF(ISBLANK(sel_Field\\Prior_Land_Use),\"\",sel_Field\\Prior_Land_Use)","v":"Cultivated"}]
["Field\\Prior_Land_Use",1,"Cultivated",10,null,null,null,"Field_Practices\\In_Row",10,0,10,{"$f":"IF(ISBLANK(sel_Field_Practices\\In_Row),\"\",sel_Field_Practices\\In_Row)","v":"Weedy"}]
["Field\\Prior_Land_Use",2,"Turf",5,null,null,null,"Field_Practices\\Row_Middles",10,0,10,{"$f":"IF(ISBLANK(sel_Field_Practices\\Row_Middles),\"\",sel_Field_Practices\\Row_Middles)","v":"Weedy"}]
["Field\\Prior_Land_Use",3,"Forest/fallow",0,null,null,null,"Weed_Management\\Herbicide_Applications",10,5,10,{"$f":"IF(ISBLANK(sel_Weed_Management\\Herbicide_Applications),\"\",sel_Weed_Management\\Herbicide_Applications)","v":"None"}]
["Field_Practices\\In_Row",1,"Weedy",10,null,null,null,"Field_Practices\\Irrigation",5,0,0,{"$f":"IF(ISBLANK(sel_Field_Practices\\Irrigation),\"\",sel_Field_Practices\\Irrigation)","v":"None"}]
["Field_Practices\\In_Row",2,"Weed-free",0]
["Field_Practices\\Irrigation",1,"Drip",5,null,null,null,"Total",{"$f":"SUMIF(I3:I10,\">0\")","v":90},{"$f":"SUMIF(J3:J10,\">0\")","v":20},{"$f":"MAX(WPYNS_MinRiskIndex,SUM(K3:K10))","v":80}]
["Field_Practices\\Irrigation",2,"None",0]
["Field_Practices\\Row_Middles",1,"Cover crop|Weedy",10,null,null,null,"High Risk Index",70]
["Field_Practices\\Row_Middles",2,"Weed-free",0,null,null,null,"Moderate Risk Index",35]
["Weed_History\\Yellow_Nutsedge",1,"Within last 2 years",20]
["Weed_History\\Yellow_Nutsedge",2,"Within 2 to 5 years",10]
["Weed_History\\Yellow_Nutsedge",3,"More than 5 years ago",5]
["Weed_History\\Yellow_Nutsedge",4,"Never",0]
["Weed_Management\\Herbicide_Applications",1,"None",10]
["Weed_Management\\Herbicide_Applications",2,"1 recommended|2 recommended|3 recommended|4 or more recommended",5]

{"sheet":"ARPGBM","index":12,"n_rows":9,"n_cols":12,"rows_kept":9,"cut":false,"hidden":true,"merged":[[0,0,0,3]]}
["Grape Berry Moth"]
["Category","Risk Level","Risk Level Description","Points",null,null,null,"Category","Max","Min","Risk","Selection"]
["Pest_History_Arthropods\\Grape_Berry_Moth",1,"Within last 2 years",20,null,null,null,"Pest_History_Arthropods\\Grape_Berry_Moth",20,0,{"$f":"getRiskValue(\"A:A\",H3,J3,L3,\"Single\")","v":20},{"$f":"IF(ISBLANK(sel_Pest_History_Arthropods\\Grape_Berry_Moth),\"\",sel_Pest_History_Arthropods\\Grape_Berry_Moth)","v":"Within last 2 years"}]
["Pest_History_Arthropods\\Grape_Berry_Moth",2,"Within 2 to 5 years",15,null,null,null,"Pest_Management_Chemical\\Insecticides",5,-5,{"$f":"getRiskValue(\"A:A\",H4,J4,L4,\"Single\")","v":5},{"$f":"IF(ISBLANK(sel_Pest_Management_Chemical\\Insecticides),\"\",sel_Pest_Management_Chemical\\Insecticides)","v":"None"}]
["Pest_History_Arthropods\\Grape_Berry_Moth",3,"More than 5 years ago",5]
["Pest_History_Arthropods\\Grape_Berry_Moth",4,"Never",0,null,null,null,"Total",{"$f":"SUMIF(I3:I4,\">0\")","v":25},{"$f":"SUMIF(J3:J4,\">0\")","v":0},{"$f":"MAX(ARPGBM_MinRiskIndex,SUM(K3:K4))","v":25}]
["Pest_Management_Chemical\\Insecticides",1,"None",5]
["Pest_Management_Chemical\\Insecticides",2,"1 to 2 recommended|3 to 4 recommended",-5,null,null,null,"High Risk Index",20]
[null,null,null,null,null,null,null,"Moderate Risk Index",10]

{"sheet":"WGRFXT","index":13,"n_rows":27,"n_cols":12,"rows_kept":27,"cut":false,"hidden":true,"merged":[[0,0,0,3]]}
["Foxtail"]
["Category","Risk Level","Risk Level Description","Points",null,null,null,"Category","Max","Min","Risk","Selection"]
["Crop\\Age",1,"1 to 3 years",10,null,null,null,"Weed_History\\Foxtail",15,0,{"$f":"getRiskValue(\"A:A\",H3,J3,L3,\"Single\")","v":15},{"$f":"IF(ISBLANK(sel_Weed_History\\Foxtail),\"\",sel_Weed_History\\Foxtail)","v":"Within last 2 years"}]
["Crop\\Age",2,"4 to 10 years|10 years or older",5,null,null,null,"Weed_Management\\Herbicide_Applications",15,-15,15,{"$f":"IF(ISBLANK(sel_Weed_Management\\Herbicide_Applications),\"\",sel_Weed_Management\\Herbicide_Applications)","v":"None"}]
["Crop_Practices\\Pruning",1,"Summer hedge",10,null,null,null,"Crop\\Age",10,5,10,{"$f":"IF(ISBLANK(sel_Crop\\Age),\"\",sel_Crop\\Age)","v":"1 to 3 years"}]
["Crop_Practices\\Pruning",2,"Never|Winter hedge|By hand",5,null,null,null,"Crop_Practices\\Pruning",10,5,10,{"$f":"IF(ISBLANK(sel_Crop_Practices\\Pruning),\"\",sel_Crop_Practices\\Pruning)","v":"Summer hedge"}]
["Field\\Prior_Land_Use",1,"Cultivated",10,null,null,null,"Field\\Prior_Land_Use",10,0,10,{"$f":"IF(ISBLANK(sel_Field\\Prior_Land_Use),\"\",sel_Field\\Prior_Land_Use)","v":"Cultivated"}]
["Field\\Prior_Land_Use",2,"Forest/fallow",5,null,null,null,"Field_Practices\\In_Row",10,0,10,{"$f":"IF(ISBLANK(sel_Field_Practices\\In_Row),\"\",sel_Field_Practices\\In_Row)","v":"Weedy"}]
["Field\\Prior_Land_Use",3,"Turf",0,null,null,null,"Field_Practices\\Row_Middles",10,0,10,{"$f":"IF(ISBLANK(sel_Field_Practices\\Row_Middles),\"\",sel_Field_Practices\\Row_Middles)","v":"Weedy"}]
["Field_Practices\\In_Row",1,"Weedy",10,null,null,null,"Field_Practices\\Irrigation",5,0,0,{"$f":"IF(ISBLANK(sel_Field_Practices\\Irrigation),\"\",sel_Field_Practices\\Irrigation)","v":"None"}]
["Field_Practices\\In_Row",2,"Weed-free",0,null,null,null,"Field_Practices\\Row_Middles_Mowing",0,-5,0,{"$f":"IF(ISBLANK(sel_Field_Practices\\Row_Middles_Mowing),\"\",sel_Field_Practices\\Row_Middles_Mowing)","v":"No"}]
["Field_Practices\\Irrigation",1,"Drip",5]
["Field_Practices\\Irrigation",2,"None",0,null,null,null,"Total",{"$f":"SUMIF(I3:I11,\">0\")","v":85},{"$f":"SUMIF(J3:J11,\">0\")","v":10},{"$f":"MAX(WGRFXT_MinRiskIndex,SUM(K3:K11))","v":80}]
["Field_Practices\\Row_Middles",1,"Weedy",10]
["Field_Practices\\Row_Middles",2,"Cover crop",5,null,null,null,"High Risk Index",70]
["Field_Practices\\Row_Middles",3,"Weed-free",0,null,null,null,"Moderate Risk Index",40]
["Field_Practices\\Row_Middles_Mowing",1,"No",0]
["Field_Practices\\Row_Middles_Mowing",2,"Yes",-5]
["Weed_History\\Foxtail",1,"Within last 2 years",15]
["Weed_History\\Foxtail",2,"Within 2 to 5 years",10]
["Weed_History\\Foxtail",3,"More than 5 years ago",5]
["Weed_History\\Foxtail",4,"Never",0]
["Weed_Management\\Herbicide_Applications",1,"None",15]
["Weed_Management\\Herbicide_Applications",2,"1 recommended",5]
["Weed_Management\\Herbicide_Applications",3,"2 recommended",-5]
["Weed_Management\\Herbicide_Applications",4,"3 recommended",-10]
["Weed_Management\\Herbicide_Applications",5,"4 or more recommended",-15]

{"sheet":"WPBRMG","index":14,"n_rows":24,"n_cols":12,"rows_kept":24,"cut":false,"hidden":true,"merged":[[0,0,0,3]]}
["Bermudagrass"]
["Category","Risk Level","Risk Level Description","Points",null,null,null,"Category","Max","Min","Risk","Selection"]
["Crop\\Age",1,"10 years or older",15,null,null,null,"Weed_History\\Bermudagrass",20,0,{"$f":"getRiskValue(\"A:A\",H3,J3,L3,\"Single\")","v":20},{"$f":"IF(ISBLANK(sel_Weed_History\\Bermudagrass),\"\",sel_Weed_History\\Bermudagrass)","v":"Within last 2 years"}]
["Crop\\Age",2,"1 to 3 years|4 to 10 years",10,null,null,null,"Crop\\Age",15,10,10,{"$f":"IF(ISBLANK(sel_Crop\\Age),\"\",sel_Crop\\Age)","v":"1 to 3 years"}]
["Crop_Practices\\Pruning",1,"Summer hedge",10,null,null,null,"Field\\Prior_Land_Use",15,5,5,{"$f":"IF(ISBLANK(sel_Field\\Prior_Land_Use),\"\",sel_Field\\Prior_Land_Use)","v":"Cultivated"}]
["Crop_Practices\\Pruning",2,"Never|Winter hedge|By hand",5,null,null,null,"Weed_Management\\Herbicide_Applications",15,-10,15,{"$f":"IF(ISBLANK(sel_Weed_Management\\Herbicide_Applications),\"\",sel_Weed_Management\\Herbicide_Applications)","v":"None"}]
["Field\\Prior_Land_Use",1,"Turf",15,null,null,null,"Crop_Practices\\Pruning",10,5,10,{"$f":"IF(ISBLANK(sel_Crop_Practices\\Pruning),\"\",sel_Crop_Practices\\Pruning)","v":"Summer hedge"}]
["Field\\Prior_Land_Use",2,"Forest/fallow|Cultivated",5,null,null,null,"Field_Practices\\In_Row",10,0,10,{"$f":"IF(ISBLANK(sel_Field_Practices\\In_Row),\"\",sel_Field_Practices\\In_Row)","v":"Weedy"}]
["Field_Practices\\In_Row",1,"Weedy",10,null,null,null,"Field_Practices\\Row_Middles",10,0,10,{"$f":"IF(ISBLANK(sel_Field_Practices\\Row_Middles),\"\",sel_Field_Practices\\Row_Middles)","v":"Weedy"}]
["Field_Practices\\In_Row",2,"Weed-free",0,null,null,null,"Field_Practices\\Irrigation",5,0,0,{"$f":"IF(ISBLANK(sel_Field_Practices\\Irrigation),\"\",sel_Field_Practices\\Irrigation)","v":"None"}]
["Field_Practices\\Irrigation",1,"Drip",5,null,null,null,"Field_Practices\\Row_Middles_Mowing",5,0,0,{"$f":"IF(ISBLANK(sel_Field_Practices\\Row_Middles_Mowing),\"\",sel_Field_Practices\\Row_Middles_Mowing)","v":"No"}]
["Field_Practices\\Irrigation",2,"None",0]
["Field_Practices\\Row_Middles",1,"Cover crop|Weedy",10,null,null,null,"Total",{"$f":"SUMIF(I3:I11,\">0\")","v":105},{"$f":"SUMIF(J3:J11,\">0\")","v":20},{"$f":"MAX(WPBRMG_MinRiskIndex,SUM(K3:K11))","v":80}]
["Field_Practices\\Row_Middles",2,"Weed-free",0]
["Field_Practices\\Row_Middles_Mowing",1,"Yes",5,null,null,null,"High Risk Index",70]
["Field_Practices\\Row_Middles_Mowing",2,"No",0,null,null,null,"Moderate Risk Index",35]
["Weed_History\\Bermudagrass",1,"Within last 2 years",20]
["Weed_History\\Bermudagrass",2,"Within 2 to 5 years",10]
["Weed_History\\Bermudagrass",3,"More than 5 years ago",5]
["Weed_History\\Bermudagrass",4,"Never",0]
["Weed_Management\\Herbicide_Applications",1,"None",15]
["Weed_Management\\Herbicide_Applications",2,"1 recommended",5]
["Weed_Management\\Herbicide_Applications",3,"2 recommended",-5]
["Weed_Management\\Herbicide_Applications",4,"3 recommended|4 or more recommended",-10]

{"sheet":"WABDK","index":15,"n_rows":26,"n_cols":12,"rows_kept":26,"cut":false,"hidden":true,"merged":[[0,0,0,3]]}
["Dock"]
["Category","Risk Level","Risk Level Description","Points",null,null,null,"Category","Max","Min","Risk","Selection"]
["Crop\\Age",1,"1 to 3 years",10,null,null,null,"Weed_History\\Dock",15,0,{"$f":"getRiskValue(\"A:A\",H3,J3,L3,\"Single\")","v":15},{"$f":"IF(ISBLANK(sel_Weed_History\\Dock),\"\",sel_Weed_History\\Dock)","v":"Within last 2 years"}]
["Crop\\Age",2,"4 to 10 years|10 years or older",5,null,null,null,"Weed_Management\\Herbicide_Applications",15,-10,15,{"$f":"IF(ISBLANK(sel_Weed_Management\\Herbicide_Applications),\"\",sel_Weed_Management\\Herbicide_Applications)","v":"None"}]
["Crop_Practices\\Pruning",1,"Summer hedge",10,null,null,null,"Crop\\Age",10,5,10,{"$f":"IF(ISBLANK(sel_Crop\\Age),\"\",sel_Crop\\Age)","v":"1 to 3 years"}]
["Crop_Practices\\Pruning",2,"Never|Winter hedge|By hand",5,null,null,null,"Crop_Practices\\Pruning",10,5,10,{"$f":"IF(ISBLANK(sel_Crop_Practices\\Pruning),\"\",sel_Crop_Practices\\Pruning)","v":"Summer hedge"}]
["Field\\Prior_Land_Use",1,"Cultivated",10,null,null,null,"Field\\Prior_Land_Use",10,0,10,{"$f":"IF(ISBLANK(sel_Field\\Prior_Land_Use),\"\",sel_Field\\Prior_Land_Use)","v":"Cultivated"}]
["Field\\Prior_Land_Use",2,"Forest/fallow",5,null,null,null,"Field_Practices\\In_Row",10,0,10,{"$f":"IF(ISBLANK(sel_Field_Practices\\In_Row),\"\",sel_Field_Practices\\In_Row)","v":"Weedy"}]
["Field\\Prior_Land_Use",3,"Turf",0,null,null,null,"Field_Practices\\Row_Middles",10,0,10,{"$f":"IF(ISBLANK(sel_Field_Practices\\Row_Middles),\"\",sel_Field_Practices\\Row_Middles)","v":"Weedy"}]
["Field_Practices\\In_Row",1,"Weedy",10,null,null,null,"Field_Practices\\Irrigation",5,0,0,{"$f":"IF(ISBLANK(sel_Field_Practices\\Irrigation),\"\",sel_Field_Practices\\Irrigation)","v":"None"}]
["Field_Practices\\In_Row",2,"Weed-free",0,null,null,null,"Field_Practices\\Row_Middles_Mowing",0,-5,0,{"$f":"IF(ISBLANK(sel_Field_Practices\\Row_Middles_Mowing),\"\",sel_Field_Practices\\Row_Middles_Mowing)","v":"No"}]
["Field_Practices\\Irrigation",1,"Drip",5]
["Field_Practices\\Irrigation",2,"None",0,null,null,null,"Total",{"$f":"SUMIF(I3:I11,\">0\")","v":85},{"$f":"SUMIF(J3:J11,\">0\")","v":10},{"$f":"MAX(WABDK_MinRiskIndex,SUM(K3:K11))","v":80}]
["Field_Practices\\Row_Middles",1,"Weedy",10]
["Field_Practices\\Row_Middles",2,"Cover crop",5,null,null,null,"High Risk Index",70]
["Field_Practices\\Row_Middles",3,"Weed-free",0,null,null,null,"Moderate Risk Index",40]
["Field_Practices\\Row_Middles_Mowing",1,"No",0]
["Field_Practices\\Row_Middles_Mowing",2,"Yes",-5]
["Weed_History\\Dock",1,"Within last 2 years",15]
["Weed_History\\Dock",2,"Within 2 to 5 years",10]
["Weed_History\\Dock",3,"More than 5 years ago",5]
["Weed_History\\Dock",4,"Never",0]
["Weed_Management\\Herbicide_Applications",1,"None",15]
["Weed_Management\\Herbicide_Applications",2,"1 recommended",5]
["Weed_Management\\Herbicide_Applications",3,"2 recommended",-5]
["Weed_Management\\Herbicide_Applications",4,"3 recommended|4 or more recommended",-10]

{"sheet":"WPD","index":16,"n_rows":26,"n_cols":12,"rows_kept":26,"cut":false,"hidden":true,"merged":[[0,0,0,3]]}
["Dandelion"]
["Category","Risk Level","Risk Level Description","Points",null,null,null,"Category","Max","Min","Risk","Selection"]
["Crop\\Age",1,"10 years or older",15,null,null,null,"Crop\\Age",15,10,{"$f":"getRiskValue(\"A:A\",H3,J3,L3,\"Single\")","v":10},{"$f":"IF(ISBLANK(sel_Crop\\Age),\"\",sel_Crop\\Age)","v":"1 to 3 years"}]
["Crop\\Age",2,"1 to 3 years|4 to 10 years",10,null,null,null,"Weed_History\\Dandelion",15,0,15,{"$f":"IF(ISBLANK(sel_Weed_History\\Dandelion),\"\",sel_Weed_History\\Dandelion)","v":"Within last 2 years"}]
["Crop_Practices\\Pruning",1,"Summer hedge",10,null,null,null,"Weed_Management\\Herbicide_Applications",15,-15,15,{"$f":"IF(ISBLANK(sel_Weed_Management\\Herbicide_Applications),\"\",sel_Weed_Management\\Herbicide_Applications)","v":"None"}]
["Crop_Practices\\Pruning",2,"Never|Winter hedge|By hand",5,null,null,null,"Crop_Practices\\Pruning",10,5,10,{"$f":"IF(ISBLANK(sel_Crop_Practices\\Pruning),\"\",sel_Crop_Practices\\Pruning)","v":"Summer hedge"}]
["Field\\Prior_Land_Use",1,"Turf",10,null,null,null,"Field\\Prior_Land_Use",10,0,0,{"$f":"IF(ISBLANK(sel_Field\\Prior_Land_Use),\"\",sel_Field\\Prior_Land_Use)","v":"Cultivated"}]
["Field\\Prior_Land_Use",2,"Forest/fallow",5,null,null,null,"Field_Practices\\In_Row",10,0,10,{"$f":"IF(ISBLANK(sel_Field_Practices\\In_Row),\"\",sel_Field_Practices\\In_Row)","v":"Weedy"}]
["Field\\Prior_Land_Use",3,"Cultivated",0,null,null,null,"Field_Practices\\Row_Middles",10,0,10,{"$f":"IF(ISBLANK(sel_Field_Practices\\Row_Middles),\"\",sel_Field_Practices\\Row_Middles)","v":"Weedy"}]
["Field_Practices\\In_Row",1,"Weedy",10,null,null,null,"Field_Practices\\Irrigation",5,0,0,{"$f":"IF(ISBLANK(sel_Field_Practices\\Irrigation),\"\",sel_Field_Practices\\Irrigation)","v":"None"}]
["Field_Practices\\In_Row",2,"Weed-free",0,null,null,null,"Field_Practices\\Row_Middles_Mowing",0,-5,0,{"$f":"IF(ISBLANK(sel_Field_Practices\\Row_Middles_Mowing),\"\",sel_Field_Practices\\Row_Middles_Mowing)","v":"No"}]
["Field_Practices\\Irrigation",1,"Drip",5]
["Field_Practices\\Irrigation",2,"None",0,null,null,null,"Total",{"$f":"SUMIF(I3:I11,\">0\")","v":90},{"$f":"SUMIF(J3:J11,\">0\")","v":15},{"$f":"MAX(WPD_MinRiskIndex,SUM(K3:K11))","v":70}]
["Field_Practices\\Row_Middles",1,"Cover crop|Weedy",10]
["Field_Practices\\Row_Middles",2,"Weed-free",0,null,null,null,"High Risk Index",75]
["Field_Practices\\Row_Middles_Mowing",1,"No",0,null,null,null,"Moderate Risk Index",45]
["Field_Practices\\Row_Middles_Mowing",2,"Yes",-5]
["Weed_History\\Dandelion",1,"Within last 2 years",15]
["Weed_History\\Dandelion",2,"Within 2 to 5 years",10]
["Weed_History\\Dandelion",3,"More than 5 years ago",5]
["Weed_History\\Dandelion",4,"Never",0]
["Weed_Management\\Herbicide_Applications",1,"None",15]
["Weed_Management\\Herbicide_Applications",2,"1 recommended",5]
["Weed_Management\\Herbicide_Applications",3,"2 recommended",-5]
["Weed_Management\\Herbicide_Applications",4,"3 recommended",-10]
["Weed_Management\\Herbicide_Applications",5,"4 or more recommended",-15]

{"sheet":"WPJG","index":17,"n_rows":26,"n_cols":12,"rows_kept":26,"cut":false,"hidden":true,"merged":[[0,0,0,3]]}
["Johnsongrass"]
["Category","Risk Level","Risk Level Description","Points",null,null,null,"Category","Max","Min","Risk","Selection"]
["Crop\\Age",1,"10 years or older",15,null,null,null,"Crop\\Age",15,10,{"$f":"getRiskValue(\"A:A\",H3,J3,L3,\"Single\")","v":10},{"$f":"IF(ISBLANK(sel_Crop\\Age),\"\",sel_Crop\\Age)","v":"1 to 3 years"}]
["Crop\\Age",2,"1 to 3 years|4 to 10 years",10,null,null,null,"Field\\Prior_Land_Use",15,0,10,{"$f":"IF(ISBLANK(sel_Field\\Prior_Land_Use),\"\",sel_Field\\Prior_Land_Use)","v":"Cultivated"}]
["Crop_Practices\\Pruning",1,"Summer hedge",10,null,null,null,"Weed_History\\Johnsongrass",15,0,15,{"$f":"IF(ISBLANK(sel_Weed_History\\Johnsongrass),\"\",sel_Weed_History\\Johnsongrass)","v":"Within last 2 years"}]
["Crop_Practices\\Pruning",2,"Never|Winter hedge|By hand",5,null,null,null,"Weed_Management\\Herbicide_Applications",15,-10,15,{"$f":"IF(ISBLANK(sel_Weed_Management\\Herbicide_Applications),\"\",sel_Weed_Management\\Herbicide_Applications)","v":"None"}]
["Field\\Prior_Land_Use",1,"Forest/fallow",15,null,null,null,"Crop_Practices\\Pruning",10,5,10,{"$f":"IF(ISBLANK(sel_Crop_Practices\\Pruning),\"\",sel_Crop_Practices\\Pruning)","v":"Summer hedge"}]
["Field\\Prior_Land_Use",2,"Cultivated",10,null,null,null,"Field_Practices\\In_Row",10,0,10,{"$f":"IF(ISBLANK(sel_Field_Practices\\In_Row),\"\",sel_Field_Practices\\In_Row)","v":"Weedy"}]
["Field\\Prior_Land_Use",3,"Turf",0,null,null,null,"Field_Practices\\Row_Middles",10,0,10,{"$f":"IF(ISBLANK(sel_Field_Practices\\Row_Middles),\"\",sel_Field_Practices\\Row_Middles)","v":"Weedy"}]
["Field_Practices\\In_Row",1,"Weedy",10,null,null,null,"Field_Practices\\Irrigation",5,0,0,{"$f":"IF(ISBLANK(sel_Field_Practices\\Irrigation),\"\",sel_Field_Practices\\Irrigation)","v":"None"}]
["Field_Practices\\In_Row",2,"Weed-free",0,null,null,null,"Field_Practices\\Row_Middles_Mowing",5,0,0,{"$f":"IF(ISBLANK(sel_Field_Practices\\Row_Middles_Mowing),\"\",sel_Field_Practices\\Row_Middles_Mowing)","v":"No"}]
["Field_Practices\\Irrigation",1,"Drip",5]
["Field_Practices\\Irrigation",2,"None",0,null,null,null,"Total",{"$f":"SUMIF(I3:I11,\">0\")","v":100},{"$f":"SUMIF(J3:J11,\">0\")","v":15},{"$f":"MAX(WPJG_MinRiskIndex,SUM(K3:K11))","v":80}]
["Field_Practices\\Row_Middles",1,"Weedy",10]
["Field_Practices\\Row_Middles",2,"Cover crop",5,null,null,null,"High Risk Index",70]
["Field_Practices\\Row_Middles",3,"Weed-free",0,null,null,null,"Moderate Risk Index",35]
["Field_Practices\\Row_Middles_Mowing",1,"Yes",5]
["Field_Practices\\Row_Middles_Mowing",2,"No",0]
["Weed_History\\Johnsongrass",1,"Within last 2 years",15]
["Weed_History\\Johnsongrass",2,"Within 3 to 5 years",10]
["Weed_History\\Johnsongrass",3,"More than 5 years ago",5]
["Weed_History\\Johnsongrass",4,"Never",0]
["Weed_Management\\Herbicide_Applications",1,"None",15]
["Weed_Management\\Herbicide_Applications",2,"1 recommended",5]
["Weed_Management\\Herbicide_Applications",3,"2 recommended",-5]
["Weed_Management\\Herbicide_Applications",4,"3 recommended|4 or more recommended",-10]

{"sheet":"DPM","index":18,"n_rows":15,"n_cols":12,"rows_kept":15,"cut":false,"hidden":true,"merged":[[0,0,0,3]]}
["Powdery Mildew"]
["Category","Risk Level","Risk Level Description","Points",null,null,null,"Category","Max","Min","Risk","Selection"]
["Crop_Practices\\Pruning",1,"Never",10,null,null,null,"Pest_History_Diseases\\Powdery_Mildew",15,0,{"$f":"getRiskValue(\"A:A\",H3,J3,L3,\"Single\")","v":15},{"$f":"IF(ISBLANK(sel_Pest_History_Diseases\\Powdery_Mildew),\"\",sel_Pest_History_Diseases\\Powdery_Mildew)","v":"Within last 2 years"}]
["Crop_Practices\\Pruning",2,"Winter hedge|By hand",0,null,null,null,"Crop_Practices\\Pruning",10,-5,{"$f":"getRiskValue(\"A:A\",H4,J4,L4,\"Single\")","v":-5},{"$f":"IF(ISBLANK(sel_Crop_Practices\\Pruning),\"\",sel_Crop_Practices\\Pruning)","v":"Summer hedge"}]
["Crop_Practices\\Pruning",3,"Summer hedge",-5,null,null,null,"Growing_Season\\Weather",10,0,{"$f":"getRiskValue(\"A:A\",H5,J5,L5,\"Single\")","v":10},{"$f":"IF(ISBLANK(sel_Growing_Season\\Weather),\"\",sel_Growing_Season\\Weather)","v":"Dry"}]
["Growing_Season\\Weather",1,"Dry|Humid",10,null,null,null,"Pest_Management_Chemical\\Fungicides",10,-10,{"$f":"getRiskValue(\"A:A\",H6,J6,L6,\"Single\")","v":10},{"$f":"IF(ISBLANK(sel_Pest_Management_Chemical\\Fungicides),\"\",sel_Pest_Management_Chemical\\Fungicides)","v":"None"}]
["Growing_Season\\Weather",2,"Rainy",0]
["Pest_History_Diseases\\Powdery_Mildew",1,"Within last 2 years",15,null,null,null,"Total",{"$f":"SUMIF(I3:I6,\">0\")","v":45},{"$f":"SUMIF(J3:J6,\">0\")","v":0},{"$f":"MAX(DPM_MinRiskIndex,SUM(K3:K6))","v":30}]
["Pest_History_Diseases\\Powdery_Mildew",2,"Within 2 to 5 years",10]
["Pest_History_Diseases\\Powdery_Mildew",3,"More than 5 years",5,null,null,null,"High Risk Index",35]
["Pest_History_Diseases\\Powdery_Mildew",4,"Never",0,null,null,null,"Moderate Risk Index",20]
["Pest_Management_Chemical\\Fungicides",1,"None",10]
["Pest_Management_Chemical\\Fungicides",2,"1 to 2 recommended",5]
["Pest_Management_Chemical\\Fungicides",3,"3 to 4 recommended",-5]
["Pest_Management_Chemical\\Fungicides",4,"6 or more recommended",-10]

{"sheet":"DBR","index":19,"n_rows":21,"n_cols":12,"rows_kept":21,"cut":false,"hidden":true,"merged":[[0,0,0,3]]}
["Black Rot"]
["Category","Risk Level","Risk Level Description","Points",null,null,null,"Category","Max","Min","Risk","Selection"]
["Crop_Practices\\Infected_Fruit_Handling",1,"Left in field",10,null,null,null,"Crop_Practices\\Pruning",15,5,{"$f":"getRiskValue(\"A:A\",H3,J3,L3,\"Single\")","v":10},{"$f":"IF(ISBLANK(sel_Crop_Practices\\Pruning),\"\",sel_Crop_Practices\\Pruning)","v":"Summer hedge"}]
["Crop_Practices\\Infected_Fruit_Handling",2,"Removed from field",-10,null,null,null,"Pest_History_Diseases\\Black_Rot",15,0,15,{"$f":"IF(ISBLANK(sel_Pest_History_Diseases\\Black_Rot),\"\",sel_Pest_History_Diseases\\Black_Rot)","v":"Within last 2 years"}]
["Crop_Practices\\Pruning",1,"Never",15,null,null,null,"Crop_Practices\\Infected_Fruit_Handling",10,-10,10,{"$f":"IF(ISBLANK(sel_Crop_Practices\\Infected_Fruit_Handling),\"\",sel_Crop_Practices\\Infected_Fruit_Handling)","v":"Left in field"}]
["Crop_Practices\\Pruning",2,"Summer hedge",10,null,null,null,"Growing_Season\\Weather",10,0,0,{"$f":"IF(ISBLANK(sel_Growing_Season\\Weather),\"\",sel_Growing_Season\\Weather)","v":"Dry"}]
["Crop_Practices\\Pruning",3,"Winter hedge|By hand",5,null,null,null,"Harvest\\Fruit_Handling",10,-5,10,{"$f":"IF(ISBLANK(sel_Harvest\\Fruit_Handling),\"\",sel_Harvest\\Fruit_Handling)","v":"Not Cooled"}]
["Growing_Season\\Weather",1,"Humid|Rainy",10,null,null,null,"Harvest\\Weather_Conditions",10,-5,10,{"$f":"IF(ISBLANK(sel_Harvest\\Weather_Conditions),\"\",sel_Harvest\\Weather_Conditions)","v":"Wet"}]
["Growing_Season\\Weather",2,"Dry",0,null,null,null,"Pest_Management_Chemical\\Fungicides",10,-5,10,{"$f":"IF(ISBLANK(sel_Pest_Management_Chemical\\Fungicides),\"\",sel_Pest_Management_Chemical\\Fungicides)","v":"None"}]
["Harvest\\Fruit_Handling",1,"Not Cooled",10]
["Harvest\\Fruit_Handling",2,"Cooled",-5,null,null,null,"Total",{"$f":"SUMIF(I3:I9,\">0\")","v":80},{"$f":"SUMIF(J3:J9,\">0\")","v":5},{"$f":"MAX(DBR_MinRiskIndex,SUM(K3:K9))","v":65}]
["Harvest\\Weather_Conditions",1,"Wet",10]
["Harvest\\Weather_Conditions",2,"Dry",-5,null,null,null,"High Risk Index",55]
["Pest_History_Diseases\\Black_Rot",1,"Within last 2 years",15,null,null,null,"Moderate Risk Index",20]
["Pest_History_Diseases\\Black_Rot",2,"Within 2 to 5 years",10]
["Pest_History_Diseases\\Black_Rot",3,"More than 5 years ago",5]
["Pest_History_Diseases\\Black_Rot",4,"Never",0]
["Pest_Management_Chemical\\Fungicides",1,"None",10]
["Pest_Management_Chemical\\Fungicides",2,"1 to 2 recommended",5]
["Pest_Management_Chemical\\Fungicides",3,"3 to 4 recommended",0]
["Pest_Management_Chemical\\Fungicides",4,"6 or more recommended",-5]

{"sheet":"DRR","index":20,"n_rows":19,"n_cols":12,"rows_kept":19,"cut":false,"hidden":true,"merged":[[0,0,0,3]]}
["Ripe Rot"]
["Category","Risk Level","Risk Level Description","Points",null,null,null,"Category","Max","Min","Risk","Selection"]
["Crop\\Type",1,"Bronze Fruit",10,null,null,null,"Crop_Practices\\Pruning",15,5,{"$f":"getRiskValue(\"A:A\",H3,J3,L3,\"Single\")","v":10},{"$f":"IF(ISBLANK(sel_Crop_Practices\\Pruning),\"\",sel_Crop_Practices\\Pruning)","v":"Summer hedge"}]
["Crop\\Type",2,"Purple/Black Fruit",0,null,null,null,"Pest_History_Diseases\\Ripe_Rot",15,0,15,{"$f":"IF(ISBLANK(sel_Pest_History_Diseases\\Ripe_Rot),\"\",sel_Pest_History_Diseases\\Ripe_Rot)","v":"Within last 2 years"}]
["Crop_Practices\\Infected_Fruit_Handling",1,"Left in field",10,null,null,null,"Crop\\Type",10,0,10,{"$f":"IF(ISBLANK(sel_Crop\\Type),\"\",sel_Crop\\Type)","v":"Bronze Fruit"}]
["Crop_Practices\\Infected_Fruit_Handling",2,"Removed from field",-10,null,null,null,"Crop_Practices\\Infected_Fruit_Handling",10,-10,10,{"$f":"IF(ISBLANK(sel_Crop_Practices\\Infected_Fruit_Handling),\"\",sel_Crop_Practices\\Infected_Fruit_Handling)","v":"Left in field"}]
["Crop_Practices\\Pruning",1,"Never",15,null,null,null,"Growing_Season\\Weather",10,0,0,{"$f":"IF(ISBLANK(sel_Growing_Season\\Weather),\"\",sel_Growing_Season\\Weather)","v":"Dry"}]
["Crop_Practices\\Pruning",2,"Summer hedge",10,null,null,null,"Pest_Management_Chemical\\Fungicides",10,-5,10,{"$f":"IF(ISBLANK(sel_Pest_Management_Chemical\\Fungicides),\"\",sel_Pest_Management_Chemical\\Fungicides)","v":"None"}]
["Crop_Practices\\Pruning",3,"Winter hedge|By hand",5]
["Growing_Season\\Weather",1,"Humid|Rainy",10,null,null,null,"Total",{"$f":"SUMIF(I3:I8,\">0\")","v":70},{"$f":"SUMIF(J3:J8,\">0\")","v":5},{"$f":"MAX(DRR_MinRiskIndex,SUM(K3:K8))","v":55}]
["Growing_Season\\Weather",2,"Dry",0]
["Pest_History_Diseases\\Ripe_Rot",1,"Within last 2 years",15,null,null,null,"High Risk Index",45]
["Pest_History_Diseases\\Ripe_Rot",2,"Within 2 to 3 yeares",10,null,null,null,"Moderate Risk Index",20]
["Pest_History_Diseases\\Ripe_Rot",3,"More than 5 years ago",5]
["Pest_History_Diseases\\Ripe_Rot",4,"Never",0]
["Pest_Management_Chemical\\Fungicides",1,"None",10]
["Pest_Management_Chemical\\Fungicides",2,"1 to 2 recommended",5]
["Pest_Management_Chemical\\Fungicides",3,"3 to 4 recommended",0]
["Pest_Management_Chemical\\Fungicides",4,"6 or more recommended",-5]

{"sheet":"ARPGRB","index":21,"n_rows":11,"n_cols":12,"rows_kept":11,"cut":false,"hidden":true,"merged":[[0,0,0,3]]}
["Grape Root Borer"]
["Category","Risk Level","Risk Level Description","Points",null,null,null,"Category","Max","Min","Risk","Selection"]
["Pest_History_Arthropods\\Grape_Root_Borer",1,"Within last 2 years",15,null,null,null,"Pest_History_Arthropods\\Grape_Root_Borer",15,0,{"$f":"getRiskValue(\"A:A\",H3,J3,L3,\"Single\")","v":15},{"$f":"IF(ISBLANK(sel_Pest_History_Arthropods\\Grape_Root_Borer),\"\",sel_Pest_History_Arthropods\\Grape_Root_Borer)","v":"Within last 2 years"}]
["Pest_History_Arthropods\\Grape_Root_Borer",2,"Within 2 to 5 years",10,null,null,null,"Pest_Management_Cultural\\Grape_Root_Borer",10,-10,{"$f":"getRiskValue(\"A:A\",H4,J4,L4,\"Single\")","v":10},{"$f":"IF(ISBLANK(sel_Pest_Management_Cultural\\Grape_Root_Borer),\"\",sel_Pest_Management_Cultural\\Grape_Root_Borer)","v":"None"}]
["Pest_History_Arthropods\\Grape_Root_Borer",3,"More than 5 years ago",5,null,null,null,"Pest_Management_Chemical\\Insecticides",5,-5,{"$f":"getRiskValue(\"A:A\",H5,J5,L5,\"Single\")","v":5},{"$f":"IF(ISBLANK(sel_Pest_Management_Chemical\\Insecticides),\"\",sel_Pest_Management_Chemical\\Insecticides)","v":"None"}]
["Pest_History_Arthropods\\Grape_Root_Borer",4,"Never",0]
["Pest_Management_Chemical\\Insecticides",1,"None",5,null,null,null,"Total",{"$f":"SUMIF(I3:I5,\">0\")","v":30},{"$f":"SUMIF(J3:J5,\">0\")","v":0},{"$f":"MAX(ARPGRB_MinRiskIndex,SUM(K3:K5))","v":30}]
["Pest_Management_Chemical\\Insecticides",2,"1 to 2 recommended|3 to 4 recommended",-5]
["Pest_Management_Cultural\\Grape_Root_Borer",1,"None",10,null,null,null,"High Risk Index",20]
["Pest_Management_Cultural\\Grape_Root_Borer",2,"Mating disruption",-5,null,null,null,"Moderate Risk Index",10]
["Pest_Management_Cultural\\Grape_Root_Borer",3,"Mounding/Mulch",-10]

{"sheet":"WABMG","index":22,"n_rows":27,"n_cols":12,"rows_kept":27,"cut":false,"hidden":true,"merged":[[0,0,0,3]]}
["Morningglory"]
["Category","Risk Level","Risk Level Description","Points",null,null,null,"Category","Max","Min","Risk","Selection"]
["Crop\\Age",1,"1 to 3 years",10,null,null,null,"Weed_History\\Morningglory",20,0,{"$f":"getRiskValue(\"A:A\",H3,J3,L3,\"Single\")","v":20},{"$f":"IF(ISBLANK(sel_Weed_History\\Morningglory),\"\",sel_Weed_History\\Morningglory)","v":"Within last 2 years"}]
["Crop\\Age",2,"4 to 10 years|10 years or older",5,null,null,null,"Weed_Management\\Herbicide_Applications",15,-15,15,{"$f":"IF(ISBLANK(sel_Weed_Management\\Herbicide_Applications),\"\",sel_Weed_Management\\Herbicide_Applications)","v":"None"}]
["Crop_Practices\\Pruning",1,"Summer hedge",10,null,null,null,"Crop\\Age",10,5,10,{"$f":"IF(ISBLANK(sel_Crop\\Age),\"\",sel_Crop\\Age)","v":"1 to 3 years"}]
["Crop_Practices\\Pruning",2,"Never|Winter hedge|By hand",5,null,null,null,"Crop_Practices\\Pruning",10,5,10,{"$f":"IF(ISBLANK(sel_Crop_Practices\\Pruning),\"\",sel_Crop_Practices\\Pruning)","v":"Summer hedge"}]
["Field\\Prior_Land_Use",1,"Cultivated",10,null,null,null,"Field\\Prior_Land_Use",10,0,10,{"$f":"IF(ISBLANK(sel_Field\\Prior_Land_Use),\"\",sel_Field\\Prior_Land_Use)","v":"Cultivated"}]
["Field\\Prior_Land_Use",2,"Forest/fallow",5,null,null,null,"Field_Practices\\In_Row",10,0,10,{"$f":"IF(ISBLANK(sel_Field_Practices\\In_Row),\"\",sel_Field_Practices\\In_Row)","v":"Weedy"}]
["Field\\Prior_Land_Use",3,"Turf",0,null,null,null,"Field_Practices\\Row_Middles",10,0,10,{"$f":"IF(ISBLANK(sel_Field_Practices\\Row_Middles),\"\",sel_Field_Practices\\Row_Middles)","v":"Weedy"}]
["Field_Practices\\In_Row",1,"Weedy",10,null,null,null,"Field_Practices\\Irrigation",5,0,0,{"$f":"IF(ISBLANK(sel_Field_Practices\\Irrigation),\"\",sel_Field_Practices\\Irrigation)","v":"None"}]
["Field_Practices\\In_Row",2,"Weed-free",0,null,null,null,"Field_Practices\\Row_Middles_Mowing",0,-5,0,{"$f":"IF(ISBLANK(sel_Field_Practices\\Row_Middles_Mowing),\"\",sel_Field_Practices\\Row_Middles_Mowing)","v":"No"}]
["Field_Practices\\Irrigation",1,"Drip",5]
["Field_Practices\\Irrigation",2,"None",0,null,null,null,"Total",{"$f":"SUMIF(I3:I11,\">0\")","v":90},{"$f":"SUMIF(J3:J11,\">0\")","v":10},{"$f":"MAX(WABMG_MinRiskIndex,SUM(K3:K11))","v":85}]
["Field_Practices\\Row_Middles",1,"Weedy",10]
["Field_Practices\\Row_Middles",2,"Cover crop",5,null,null,null,"High Risk Index",75]
["Field_Practices\\Row_Middles",3,"Weed-free",0,null,null,null,"Moderate Risk Index",40]
["Field_Practices\\Row_Middles_Mowing",1,"No",0]
["Field_Practices\\Row_Middles_Mowing",2,"Yes",-5]
["Weed_History\\Morningglory",1,"Within last 2 years",20]
["Weed_History\\Morningglory",2,"Within 2 to 5 years",10]
["Weed_History\\Morningglory",3,"More than 5 years ago",5]
["Weed_History\\Morningglory",4,"Never",0]
["Weed_Management\\Herbicide_Applications",1,"None",15]
["Weed_Management\\Herbicide_Applications",2,"1 recommended",5]
["Weed_Management\\Herbicide_Applications",3,"2 recommended",-5]
["Weed_Management\\Herbicide_Applications",4,"3 recommended",-10]
["Weed_Management\\Herbicide_Applications",5,"4 or more recommended",-15]

{"sheet":"WABPW","index":23,"n_rows":25,"n_cols":12,"rows_kept":25,"cut":false,"hidden":true,"merged":[[0,0,0,3]]}
["Pigweed"]
["Category","Risk Level","Risk Level Description","Points",null,null,null,"Category","Max","Min","Risk","Selection"]
["Crop\\Age",1,"1 to 3 years",10,null,null,null,"Weed_History\\Pigweed",20,0,{"$f":"getRiskValue(\"A:A\",H3,J3,L3,\"Single\")","v":20},{"$f":"IF(ISBLANK(sel_Weed_History\\Pigweed),\"\",sel_Weed_History\\Pigweed)","v":"Within last 2 years"}]
["Crop\\Age",2,"4 to 10 years|10 years or older",5,null,null,null,"Field\\Prior_Land_Use",15,5,15,{"$f":"IF(ISBLANK(sel_Field\\Prior_Land_Use),\"\",sel_Field\\Prior_Land_Use)","v":"Cultivated"}]
["Crop_Practices\\Pruning",1,"Summer hedge",10,null,null,null,"Weed_Management\\Herbicide_Applications",15,-15,15,{"$f":"IF(ISBLANK(sel_Weed_Management\\Herbicide_Applications),\"\",sel_Weed_Management\\Herbicide_Applications)","v":"None"}]
["Crop_Practices\\Pruning",2,"Never|Winter hedge|By hand",5,null,null,null,"Crop\\Age",10,5,10,{"$f":"IF(ISBLANK(sel_Crop\\Age),\"\",sel_Crop\\Age)","v":"1 to 3 years"}]
["Field\\Prior_Land_Use",1,"Cultivated",15,null,null,null,"Crop_Practices\\Pruning",10,5,10,{"$f":"IF(ISBLANK(sel_Crop_Practices\\Pruning),\"\",sel_Crop_Practices\\Pruning)","v":"Summer hedge"}]
["Field\\Prior_Land_Use",2,"Forest/fallow|Turf",5,null,null,null,"Field_Practices\\In_Row",10,0,10,{"$f":"IF(ISBLANK(sel_Field_Practices\\In_Row),\"\",sel_Field_Practices\\In_Row)","v":"Weedy"}]
["Field_Practices\\In_Row",1,"Weedy",10,null,null,null,"Field_Practices\\Row_Middles",10,0,10,{"$f":"IF(ISBLANK(sel_Field_Practices\\Row_Middles),\"\",sel_Field_Practices\\Row_Middles)","v":"Weedy"}]
["Field_Practices\\In_Row",2,"Weed-free",0,null,null,null,"Field_Practices\\Irrigation",5,0,0,{"$f":"IF(ISBLANK(sel_Field_Practices\\Irrigation),\"\",sel_Field_Practices\\Irrigation)","v":"None"}]
["Field_Practices\\Irrigation",1,"Drip",5,null,null,null,"Field_Practices\\Row_Middles_Mowing",0,-5,0,{"$f":"IF(ISBLANK(sel_Field_Practices\\Row_Middles_Mowing),\"\",sel_Field_Practices\\Row_Middles_Mowing)","v":"No"}]
["Field_Practices\\Irrigation",2,"None",0]
["Field_Practices\\Row_Middles",1,"Cover crop|Weedy",10,null,null,null,"Total",{"$f":"SUMIF(I3:I11,\">0\")","v":95},{"$f":"SUMIF(J3:J11,\">0\")","v":15},{"$f":"MAX(WABPW_MinRiskIndex,SUM(K3:K11))","v":90}]
["Field_Practices\\Row_Middles",2,"Weed-free",0]
["Field_Practices\\Row_Middles_Mowing",1,"No",0,null,null,null,"High Risk Index",65]
["Field_Practices\\Row_Middles_Mowing",2,"Yes",-5,null,null,null,"Moderate Risk Index",40]
["Weed_History\\Pigweed",1,"Within last 2 years",20]
["Weed_History\\Pigweed",2,"Within 2 to 5 years",15]
["Weed_History\\Pigweed",3,"More than 5 years ago",10]
["Weed_History\\Pigweed",4,"Never",0]
["Weed_Management\\Herbicide_Applications",1,"None",15]
["Weed_Management\\Herbicide_Applications",2,"1 recommended",5]
["Weed_Management\\Herbicide_Applications",3,"2 recommended",-5]
["Weed_Management\\Herbicide_Applications",4,"3 recommended",-10]
["Weed_Management\\Herbicide_Applications",5,"4 or more recommended",-15]

{"sheet":"WABRW","index":24,"n_rows":26,"n_cols":12,"rows_kept":26,"cut":false,"hidden":true,"merged":[[0,0,0,3]]}
["Ragweed"]
["Category","Risk Level","Risk Level Description","Points",null,null,null,"Category","Max","Min","Risk","Selection"]
["Crop\\Age",1,"1 to 3 years",10,null,null,null,"Weed_History\\Ragweed",20,0,{"$f":"getRiskValue(\"A:A\",H3,J3,L3,\"Single\")","v":20},{"$f":"IF(ISBLANK(sel_Weed_History\\Ragweed),\"\",sel_Weed_History\\Ragweed)","v":"Within last 2 years"}]
["Crop\\Age",2,"4 to 10 years|10 years or older",5,null,null,null,"Field\\Prior_Land_Use",15,5,15,{"$f":"IF(ISBLANK(sel_Field\\Prior_Land_Use),\"\",sel_Field\\Prior_Land_Use)","v":"Cultivated"}]
["Crop_Practices\\Pruning",1,"Summer hedge",10,null,null,null,"Weed_Management\\Herbicide_Applications",15,-15,15,{"$f":"IF(ISBLANK(sel_Weed_Management\\Herbicide_Applications),\"\",sel_Weed_Management\\Herbicide_Applications)","v":"None"}]
["Crop_Practices\\Pruning",2,"Never|Winter hedge|By hand",5,null,null,null,"Crop\\Age",10,5,10,{"$f":"IF(ISBLANK(sel_Crop\\Age),\"\",sel_Crop\\Age)","v":"1 to 3 years"}]
["Field\\Prior_Land_Use",1,"Cultivated",15,null,null,null,"Crop_Practices\\Pruning",10,5,10,{"$f":"IF(ISBLANK(sel_Crop_Practices\\Pruning),\"\",sel_Crop_Practices\\Pruning)","v":"Summer hedge"}]
["Field\\Prior_Land_Use",2,"Forest/fallow|Turf",5,null,null,null,"Field_Practices\\In_Row",10,0,10,{"$f":"IF(ISBLANK(sel_Field_Practices\\In_Row),\"\",sel_Field_Practices\\In_Row)","v":"Weedy"}]
["Field_Practices\\In_Row",1,"Weedy",10,null,null,null,"Field_Practices\\Row_Middles",10,0,10,{"$f":"IF(ISBLANK(sel_Field_Practices\\Row_Middles),\"\",sel_Field_Practices\\Row_Middles)","v":"Weedy"}]
["Field_Practices\\In_Row",2,"Weed-free",0,null,null,null,"Field_Practices\\Irrigation",5,0,0,{"$f":"IF(ISBLANK(sel_Field_Practices\\Irrigation),\"\",sel_Field_Practices\\Irrigation)","v":"None"}]
["Field_Practices\\Irrigation",1,"Drip",5,null,null,null,"Field_Practices\\Row_Middles_Mowing",0,-5,0,{"$f":"IF(ISBLANK(sel_Field_Practices\\Row_Middles_Mowing),\"\",sel_Field_Practices\\Row_Middles_Mowing)","v":"No"}]
["Field_Practices\\Irrigation",2,"None",0]
["Field_Practices\\Row_Middles",1,"Weedy",10,null,null,null,"Total",{"$f":"SUMIF(I3:I11,\">0\")","v":95},{"$f":"SUMIF(J3:J11,\">0\")","v":15},{"$f":"MAX(WABRW_MinRiskIndex,SUM(K3:K11))","v":90}]
["Field_Practices\\Row_Middles",2,"Cover crop",5]
["Field_Practices\\Row_Middles",3,"Weed-free",0,null,null,null,"High Risk Index",65]
["Field_Practices\\Row_Middles_Mowing",1,"No",0,null,null,null,"Moderate Risk Index",40]
["Field_Practices\\Row_Middles_Mowing",2,"Yes",-5]
["Weed_History\\Ragweed",1,"Within last 2 years",20]
["Weed_History\\Ragweed",2,"Within 2 to 5 years",10]
["Weed_History\\Ragweed",3,"More than 5 years ago",5]
["Weed_History\\Ragweed",4,"Never",0]
["Weed_Management\\Herbicide_Applications",1,"None",15]
["Weed_Management\\Herbicide_Applications",2,"1 recommended",5]
["Weed_Management\\Herbicide_Applications",3,"2 recommended",-5]
["Weed_Management\\Herbicide_Applications",4,"3 recommended",-10]
["Weed_Management\\Herbicide_Applications",5,"4 or more recommended",-15]

{"sheet":"WPVC","index":25,"n_rows":20,"n_cols":12,"rows_kept":20,"cut":false,"hidden":true,"merged":[[0,0,0,3]]}
["Virginia Creeper"]
["Category","Risk Level","Risk Level Description","Points",null,null,null,"Category","Max","Min","Risk","Selection"]
["Crop\\Age",1,"1 to 3 years",10,null,null,null,"Field\\Prior_Land_Use",15,0,{"$f":"getRiskValue(\"A:A\",H3,J3,L3,\"Single\")","v":0},{"$f":"IF(ISBLANK(sel_Field\\Prior_Land_Use),\"\",sel_Field\\Prior_Land_Use)","v":"Cultivated"}]
["Crop\\Age",2,"4 to 10 years|10 years or older",5,null,null,null,"Weed_History\\Virginia_Creeper",15,0,15,{"$f":"IF(ISBLANK(sel_Weed_History\\Virginia_Creeper),\"\",sel_Weed_History\\Virginia_Creeper)","v":"Within last 2 years"}]
["Field\\Prior_Land_Use",1,"Forest/fallow",15,null,null,null,"Weed_Management\\Herbicide_Applications",15,5,15,{"$f":"IF(ISBLANK(sel_Weed_Management\\Herbicide_Applications),\"\",sel_Weed_Management\\Herbicide_Applications)","v":"None"}]
["Field\\Prior_Land_Use",2,"Cultivated|Turf",0,null,null,null,"Crop\\Age",10,5,10,{"$f":"IF(ISBLANK(sel_Crop\\Age),\"\",sel_Crop\\Age)","v":"1 to 3 years"}]
["Field_Practices\\In_Row",1,"Weedy",10,null,null,null,"Field_Practices\\In_Row",10,0,10,{"$f":"IF(ISBLANK(sel_Field_Practices\\In_Row),\"\",sel_Field_Practices\\In_Row)","v":"Weedy"}]
["Field_Practices\\In_Row",2,"Weed-free",0,null,null,null,"Field_Practices\\Irrigation",5,0,0,{"$f":"IF(ISBLANK(sel_Field_Practices\\Irrigation),\"\",sel_Field_Practices\\Irrigation)","v":"None"}]
["Field_Practices\\Irrigation",1,"Drip",5,null,null,null,"Field_Practices\\Row_Middles",5,0,5,{"$f":"IF(ISBLANK(sel_Field_Practices\\Row_Middles),\"\",sel_Field_Practices\\Row_Middles)","v":"Weedy"}]
["Field_Practices\\Irrigation",2,"None",0,null,null,null,"Field_Practices\\Row_Middles_Mowing",0,-5,0,{"$f":"IF(ISBLANK(sel_Field_Practices\\Row_Middles_Mowing),\"\",sel_Field_Practices\\Row_Middles_Mowing)","v":"No"}]
["Field_Practices\\Row_Middles",1,"Cover crop|Weedy",5]
["Field_Practices\\Row_Middles",2,"Weed-free",0,null,null,null,"Total",{"$f":"SUMIF(I3:I10,\">0\")","v":75},{"$f":"SUMIF(J3:J10,\">0\")","v":10},{"$f":"MAX(WPVC_MinRiskIndex,SUM(K3:K10))","v":55}]
["Field_Practices\\Row_Middles_Mowing",1,"No",0]
["Field_Practices\\Row_Middles_Mowing",2,"Yes",-5,null,null,null,"High Risk Index",60]
["Weed_History\\Virginia_Creeper",1,"Within last 2 years",15,null,null,null,"Moderate Risk Index",40]
["Weed_History\\Virginia_Creeper",2,"Within 2 to 5 years",10]
["Weed_History\\Virginia_Creeper",3,"More than 5 years ago",5]
["Weed_History\\Virginia_Creeper",4,"Never",0]
["Weed_Management\\Herbicide_Applications",1,"None",15]
["Weed_Management\\Herbicide_Applications",2,"1 recommended|2 recommended|3 recommended|4 or more recommended",5]

{"sheet":"ARPSM","index":26,"n_rows":12,"n_cols":12,"rows_kept":12,"cut":false,"hidden":true,"merged":[[0,0,0,3]]}
["Spider Mites"]
["Category","Risk Level","Risk Level Description","Points",null,null,null,"Category","Max","Min","Risk","Selection"]
["Growing_Season\\Weather",1,"Dry|Humid",10,null,null,null,"Pest_Management_Chemical\\Sevin",15,0,{"$f":"getRiskValue(\"A:A\",H3,J3,L3,\"Single\")","v":15},{"$f":"IF(ISBLANK(sel_Pest_Management_Chemical\\Sevin),\"\",sel_Pest_Management_Chemical\\Sevin)","v":"Used"}]
["Growing_Season\\Weather",2,"Rainy",0,null,null,null,"Growing_Season\\Weather",10,0,{"$f":"getRiskValue(\"A:A\",H4,J4,L4,\"Single\")","v":10},{"$f":"IF(ISBLANK(sel_Growing_Season\\Weather),\"\",sel_Growing_Season\\Weather)","v":"Dry"}]
["Pest_History_Arthropods\\Spider_Mites",1,"Within last 2 years",10,null,null,null,"Pest_History_Arthropods\\Spider_Mites",10,0,{"$f":"getRiskValue(\"A:A\",H5,J5,L5,\"Single\")","v":10},{"$f":"IF(ISBLANK(sel_Pest_History_Arthropods\\Spider_Mites),\"\",sel_Pest_History_Arthropods\\Spider_Mites)","v":"Within last 2 years"}]
["Pest_History_Arthropods\\Spider_Mites",2,"Within 2 to 5 years",5,null,null,null,"Pest_Management_Chemical\\Insecticides",10,-5,{"$f":"getRiskValue(\"A:A\",H6,J6,L6,\"Single\")","v":10},{"$f":"IF(ISBLANK(sel_Pest_Management_Chemical\\Insecticides),\"\",sel_Pest_Management_Chemical\\Insecticides)","v":"None"}]
["Pest_History_Arthropods\\Spider_Mites",3,"Never|More than 5 years ago",0]
["Pest_Management_Chemical\\Insecticides",1,"None",10,null,null,null,"Total",{"$f":"SUMIF(I3:I6,\">0\")","v":45},{"$f":"SUMIF(J3:J6,\">0\")","v":0},{"$f":"MAX(ARPSM_MinRiskIndex,SUM(K3:K6))","v":45}]
["Pest_Management_Chemical\\Insecticides",2,"1 to 2 recommended",0]
["Pest_Management_Chemical\\Insecticides",3,"3 to 4 recommended",-5,null,null,null,"High Risk Index",15]
["Pest_Management_Chemical\\Sevin",1,"Used",15,null,null,null,"Moderate Risk Index",10]
["Pest_Management_Chemical\\Sevin",2,"Not used",0]